{"text_format":"1","workbook":"xlsx","n_sheets":5,"sheets":["name","data","Book","الغلاف الداخلي","الغلاف الازرق"],"not_rendered":{"charts":0,"images":4,"macros":1,"external_links":0,"defined_names":4,"comments":0,"pivot_tables":0},"unopened":[],"bounds":{"document_bytes":16777216,"sheet_cells":100000,"rows_first":2000,"rows_last":500,"rows_between":2000,"halvings":0,"cell_chars":16384,"cell_head_chars":4096},"cells_cut":0,"cells_raw":0,"read":"whole","date_system":"1900"}

{"sheet":"name","index":0,"n_rows":134,"n_cols":49,"rows_kept":134,"cut":false,"hidden":false,"merged":[[0,0,0,7],[0,8,0,15],[0,16,0,27],[0,28,0,33],[0,34,0,47],[1,0,3,0],[1,2,3,2],[1,4,3,4],[1,6,3,6],[1,8,3,8],[1,10,3,10],[1,12,3,12],[1,14,3,14],[1,16,3,16],[1,18,3,18],[1,20,3,20],[1,22,3,22],[1,24,3,24],[1,26,3,26],[1,28,3,28],[1,30,3,30],[1,32,3,32],[1,46,3,46],[1,34,3,34],[1,36,3,36],[1,38,3,38],[1,40,3,40],[1,42,3,42],[1,44,3,44]]}
["الصف العاشر الأساسي",null,null,null,null,null,null,null,"الحادي عشر العلمي",null,null,null,null,null,null,null,"الحادي عشر الادبي ",null,null,null,null,null,null,null,null,null,null,null,"الثاني عشر العلمي",null,null,null,null,null,"الثاني عشر الادبي "]
["الرقم","الصف العاشر أ","الرقم","الصف العاشر ب","الرقم","الصف العاشر ج","الرقم","الصف العاشر د","الرقم","الحادي عشر العلمي أ","الرقم","الحادي عشر العلمي ب","الرقم","الحادي عشر العلمي ج","الرقم","الحادي عشر العلمي د","الرقم","الحادي عشر الادبي أ","الرقم","الحادي عشر الادبي ب","الرقم","الحادي عشر الادبي ج","الرقم","الحادي عشر الادبي د","الرقم","الحادي عشر الادبي هـ","الرقم","الحادي عشر الادبي و","الرقم","الثاني عشر العلمي أ","الرقم","الثاني عشر العلمي ب","الرقم","الثاني عشر العلمي ج","الرقم","الثاني عشر الادبي أ","الرقم","الثاني عشر الادبي ب","الرقم","الثاني عشر الادبي ج","الرقم","الثاني عشر الادبي د","الرقم","الثاني عشر الادبي هـ","الرقم","الثاني عشر الادبي و","الرقم","الثاني عشر الادبي ز"]
[null,"عدد طلاب الشعبة ",null,"عدد طلاب الشعبة ",null,"عدد طلاب الشعبة ",null,"عدد طلاب الشعبة ",null,"عدد طلاب الشعبة ",null,"عدد طلاب الشعبة ",null,"عدد طلاب الشعبة ",null,"عدد طلاب الشعبة ",null,"عدد طلاب الشعبة ",null,"عدد طلاب الشعبة ",null,"عدد طلاب الشعبة ",null,"عدد طلاب الشعبة ",null,"عدد طلاب الشعبة ",null,"عدد طلاب الشعبة ",null,"عدد طلاب الشعبة ",null,"عدد طلاب الشعبة ",null,"عدد طلاب الشعبة ",null,"عدد طلاب الشعبة ",null,"عدد طلاب الشعبة ",null,"عدد طلاب الشعبة ",null,"عدد طلاب الشعبة ",null,"عدد طلاب الشعبة ",null,"عدد طلاب الشعبة ",null,"عدد طلاب الشعبة "]
[null,{"$f":"COUNTA(B5:B68)","v":59},null,{"$f":"COUNTA(D5:D68)","v":59},null,{"$f":"COUNTA(F5:F68)","v":59},null,{"$f":"COUNTA(H5:H68)","v":55},null,{"$f":"COUNTA(J5:J68)","v":54},null,{"$f":"COUNTA(L5:L68)","v":55},null,{"$f":"COUNTA(N5:N68)","v":56},null,{"$f":"COUNTA(P5:P68)","v":64},null,{"$f":"COUNTA(R5:R68)","v":62},null,{"$f":"COUNTA(T5:T68)","v":59},null,{"$f":"COUNTA(V5:V68)","v":59},null,{"$f":"COUNTA(X5:X68)","v":59},null,{"$f":"COUNTA(Z5:Z68)","v":59},null,{"$f":"COUNTA(AB5:AB68)","v":59},null,{"$f":"COUNTA(AD5:AD68)","v":59},null,{"$f":"COUNTA(AF5:AF68)","v":59},null,{"$f":"COUNTA(AH5:AH68)","v":0},null,{"$f":"COUNTA(AJ5:AJ68)","v":64},null,{"$f":"COUNTA(AL5:AL68)","v":40},null,{"$f":"COUNTA(AN5:AN68)","v":0},null,{"$f":"COUNTA(AP5:AP68)","v":0},null,{"$f":"COUNTA(AR5:AR68)","v":51},null,{"$f":"COUNTA(AT5:AT68)","v":0},null,{"$f":"COUNTA(AV5:AV68)","v":0},{"$f":"SUM(A4:AV4)","v":1091}]
[null,"محمد1",null,"خالد 1",null,"زياد1",null,"حسن 1",null,"كرم 1",null,"صابر1",null,"كامل 1",null,"غسان 1",null,"محمود 1",null,"فريد 1",null,"مدحت 1",null,"طلعت 1",null,"عصام 1",null,"رياض 1",null,"ابراهيم 1",null,"موسى 1",null,null,null,"فراس 1",null,"خالد 1",null,null,null,null,null,"سائد 1"]
[null,"محمد2",null,"خالد 2",null,"زياد2",null,"حسن 2",null,"كرم 2",null,"صابر2",null,"كامل 2",null,"غسان 2",null,"محمود 2",null,"فريد 2",null,"مدحت 2",null,"طلعت 2",null,"عصام 2",null,"رياض 2",null,"ابراهيم 2",null,"موسى 2",null,null,null,"فراس 2",null,"خالد 2",null,null,null,null,null,"سائد 2"]
[null,"محمد3",null,"خالد 3",null,"زياد3",null,"حسن 3",null,"كرم 3",null,"صابر3",null,"كامل 3",null,"غسان 3",null,"محمود 3",null,"فريد 3",null,"مدحت 3",null,"طلعت 3",null,"عصام 3",null,"رياض 3",null,"ابراهيم 3",null,"موسى 3",null,null,null,"فراس 3",null,"خالد 3",null,null,null,null,null,"سائد 3"]
[null,"محمد4",null,"خالد 4",null,"زياد4",null,"حسن 4",null,"كرم 4",null,"صابر4",null,"كامل 4",null,"غسان 4",null,"محمود 4",null,"فريد 4",null,"مدحت 4",null,"طلعت 4",null,"عصام 4",null,"رياض 4",null,"ابراهيم 4",null,"موسى 4",null,null,null,"فراس 4",null,"خالد 4",null,null,null,null,null,"سائد 4"]
[null,"محمد5",null,"خالد 5",null,"زياد5",null,"حسن 5",null,"كرم 5",null,"صابر5",null,"كامل 5",null,"غسان 5",null,"محمود 5",null,"فريد 5",null,"مدحت 5",null,"طلعت 5",null,"عصام 5",null,"رياض 5",null,"ابراهيم 5",null,"موسى 5",null,null,null,"فراس 5",null,"خالد 5",null,null,null,null,null,"سائد 5"]
[null,"محمد6",null,"خالد 6",null,"زياد6",null,"حسن 6",null,"كرم 6",null,"صابر6",null,"كامل 6",null,"غسان 6",null,"محمود 6",null,"فريد 6",null,"مدحت 6",null,"طلعت 6",null,"عصام 6",null,"رياض 6",null,"ابراهيم 6",null,"موسى 6",null,null,null,"فراس 6",null,"خالد 6",null,null,null,null,null,"سائد 6"]
[null,"محمد7",null,"خالد 7",null,"زياد7",null,"حسن 7",null,"كرم 7",null,"صابر7",null,"كامل 7",null,"غسان 7",null,"محمود 7",null,"فريد 7",null,"مدحت 7",null,"طلعت 7",null,"عصام 7",null,"رياض 7",null,"ابراهيم 7",null,"موسى 7",null,null,null,"فراس 7",null,"خالد 7",null,null,null,null,null,"سائد 7"]
[null,"محمد8",null,"خالد 8",null,"زياد8",null,"حسن 8",null,"كرم 8",null,"صابر8",null,"كامل 8",null,"غسان 8",null,"محمود 8",null,"فريد 8",null,"مدحت 8",null,"طلعت 8",null,"عصام 8",null,"رياض 8",null,"ابراهيم 8",null,"موسى 8",null,null,null,"فراس 8",null,"خالد 8",null,null,null,null,null,"سائد 8"]
[null,"محمد9",null,"خالد 9",null,"زياد9",null,"حسن 9",null,"كرم 9",null,"صابر9",null,"كامل 9",null,"غسان 9",null,"محمود 9",null,"فريد 9",null,"مدحت 9",null,"طلعت 9",null,"عصام 9",null,"رياض 9",null,"ابراهيم 9",null,"موسى 9",null,null,null,"فراس 9",null,"خالد 9",null,null,null,null,null,"سائد 9"]
[null,"محمد10",null,"خالد 10",null,"زياد10",null,"حسن 10",null,"كرم 10",null,"صابر10",null,"كامل 10",null,"غسان 10",null,"محمود 10",null,"فريد 10",null,"مدحت 10",null,"طلعت 10",null,"عصام 10",null,"رياض 10",null,"ابراهيم 10",null,"موسى 10",null,null,null,"فراس 10",null,"خالد 10",null,null,null,null,null,"سائد 10"]
[null,"محمد11",null,"خالد 11",null,"زياد11",null,"حسن 11",null,"كرم 11",null,"صابر11",null,"كامل 11",null,"غسان 11",null,"محمود 11",null,"فريد 11",null,"مدحت 11",null,"طلعت 11",null,"عصام 11",null,"رياض 11",null,"ابراهيم 11",null,"موسى 11",null,null,null,"فراس 11",null,"خالد 11",null,null,null,null,null,"سائد 11"]
[null,"محمد12",null,"خالد 12",null,"زياد12",null,"حسن 12",null,"كرم 12",null,"صابر12",null,"كامل 12",null,"غسان 12",null,"محمود 12",null,"فريد 12",null,"مدحت 12",null,"طلعت 12",null,"عصام 12",null,"رياض 12",null,"ابراهيم 12",null,"موسى 12",null,null,null,"فراس 12",null,"خالد 12",null,null,null,null,null,"سائد 12"]
[null,"محمد13",null,"خالد 13",null,"زياد13",null,"حسن 13",null,"كرم 13",null,"صابر13",null,"كامل 13",null,"غسان 13",null,"محمود 13",null,"فريد 13",null,"مدحت 13",null,"طلعت 13",null,"عصام 13",null,"رياض 13",null,"ابراهيم 13",null,"موسى 13",null,null,null,"فراس 13",null,"خالد 13",null,null,null,null,null,"سائد 13"]
[null,"محمد14",null,"خالد 14",null,"زياد14",null,"حسن 14",null,"كرم 14",null,"صابر14",null,"كامل 14",null,"غسان 14",null,"محمود 14",null,"فريد 14",null,"مدحت 14",null,"طلعت 14",null,"عصام 14",null,"رياض 14",null,"ابراهيم 14",null,"موسى 14",null,null,null,"فراس 14",null,"خالد 14",null,null,null,null,null,"سائد 14"]
[null,"محمد15",null,"خالد 15",null,"زياد15",null,"حسن 15",null,"كرم 15",null,"صابر15",null,"كامل 15",null,"غسان 15",null,"محمود 15",null,"فريد 15",null,"مدحت 15",null,"طلعت 15",null,"عصام 15",null,"رياض 15",null,"ابراهيم 15",null,"موسى 15",null,null,null,"فراس 15",null,"خالد 15",null,null,null,null,null,"سائد 15"]
[null,"محمد16",null,"خالد 16",null,"زياد16",null,"حسن 16",null,"كرم 16",null,"صابر16",null,"كامل 16",null,"غسان 16",null,"محمود 16",null,"فريد 16",null,"مدحت 16",null,"طلعت 16",null,"عصام 16",null,"رياض 16",null,"ابراهيم 16",null,"موسى 16",null,null,null,"فراس 16",null,"خالد 16",null,null,null,null,null,"سائد 16"]
[null,"محمد17",null,"خالد 17",null,"زياد17",null,"حسن 17",null,"كرم 17",null,"صابر17",null,"كامل 17",null,"غسان 17",null,"محمود 17",null,"فريد 17",null,"مدحت 17",null,"طلعت 17",null,"عصام 17",null,"رياض 17",null,"ابراهيم 17",null,"موسى 17",null,null,null,"فراس 17",null,"خالد 17",null,null,null,null,null,"سائد 17"]
[null,"محمد18",null,"خالد 18",null,"زياد18",null,"حسن 18",null,"كرم 18",null,"صابر18",null,"كامل 18",null,"غسان 18",null,"محمود 18",null,"فريد 18",null,"مدحت 18",null,"طلعت 18",null,"عصام 18",null,"رياض 18",null,"ابراهيم 18",null,"موسى 18",null,null,null,"فراس 18",null,"خالد 18",null,null,null,null,null,"سائد 18"]
[null,"محمد19",null,"خالد 19",null,"زياد19",null,"حسن 19",null,"كرم 19",null,"صابر19",null,"كامل 19",null,"غسان 19",null,"محمود 19",null,"فريد 19",null,"مدحت 19",null,"طلعت 19",null,"عصام 19",null,"رياض 19",null,"ابراهيم 19",null,"موسى 19",null,null,null,"فراس 19",null,"خالد 19",null,null,null,null,null,"سائد 19"]
[null,"محمد20",null,"خالد 20",null,"زياد20",null,"حسن 20",null,"كرم 20",null,"صابر20",null,"كامل 20",null,"غسان 20",null,"محمود 20",null,"فريد 20",null,"مدحت 20",null,"طلعت 20",null,"عصام 20",null,"رياض 20",null,"ابراهيم 20",null,"موسى 20",null,null,null,"فراس 20",null,"خالد 20",null,null,null,null,null,"سائد 20"]
[null,"محمد21",null,"خالد 21",null,"زياد21",null,"حسن 21",null,"كرم 21",null,"صابر21",null,"كامل 21",null,"غسان 21",null,"محمود 21",null,"فريد 21",null,"مدحت 21",null,"طلعت 21",null,"عصام 21",null,"رياض 21",null,"ابراهيم 21",null,"موسى 21",null,null,null,"فراس 21",null,"خالد 21",null,null,null,null,null,"سائد 21"]
[null,"محمد22",null,"خالد 22",null,"زياد22",null,"حسن 22",null,"كرم 22",null,"صابر22",null,"كامل 22",null,"غسان 22",null,"محمود 22",null,"فريد 22",null,"مدحت 22",null,"طلعت 22",null,"عصام 22",null,"رياض 22",null,"ابراهيم 22",null,"موسى 22",null,null,null,"فراس 22",null,"خالد 22",null,null,null,null,null,"سائد 22"]
[null,"محمد23",null,"خالد 23",null,"زياد23",null,"حسن 23",null,"كرم 23",null,"صابر23",null,"كامل 23",null,"غسان 23",null,"محمود 23",null,"فريد 23",null,"مدحت 23",null,"طلعت 23",null,"عصام 23",null,"رياض 23",null,"ابراهيم 23",null,"موسى 23",null,null,null,"فراس 23",null,"خالد 23",null,null,null,null,null,"سائد 23"]
[null,"محمد24",null,"خالد 24",null,"زياد24",null,"حسن 24",null,"كرم 24",null,"صابر24",null,"كامل 24",null,"غسان 24",null,"محمود 24",null,"فريد 24",null,"مدحت 24",null,"طلعت 24",null,"عصام 24",null,"رياض 24",null,"ابراهيم 24",null,"موسى 24",null,null,null,"فراس 24",null,"خالد 24",null,null,null,null,null,"سائد 24"]
[null,"محمد25",null,"خالد 25",null,"زياد25",null,"حسن 25",null,"كرم 25",null,"صابر25",null,"كامل 25",null,"غسان 25",null,"محمود 25",null,"فريد 25",null,"مدحت 25",null,"طلعت 25",null,"عصام 25",null,"رياض 25",null,"ابراهيم 25",null,"موسى 25",null,null,null,"فراس 25",null,"خالد 25",null,null,null,null,null,"سائد 25"]
[null,"محمد26",null,"خالد 26",null,"زياد26",null,"حسن 26",null,"كرم 26",null,"صابر26",null,"كامل 26",null,"غسان 26",null,"محمود 26",null,"فريد 26",null,"مدحت 26",null,"طلعت 26",null,"عصام 26",null,"رياض 26",null,"ابراهيم 26",null,"موسى 26",null,null,null,"فراس 26",null,"خالد 26",null,null,null,null,null,"سائد 26"]
[null,"محمد27",null,"خالد 27",null,"زياد27",null,"حسن 27",null,"كرم 27",null,"صابر27",null,"كامل 27",null,"غسان 27",null,"محمود 27",null,"فريد 27",null,"مدحت 27",null,"طلعت 27",null,"عصام 27",null,"رياض 27",null,"ابراهيم 27",null,"موسى 27",null,null,null,"فراس 27",null,"خالد 27",null,null,null,null,null,"سائد 27"]
[null,"محمد28",null,"خالد 28",null,"زياد28",null,"حسن 28",null,"كرم 28",null,"صابر28",null,"كامل 28",null,"غسان 28",null,"محمود 28",null,"فريد 28",null,"مدحت 28",null,"طلعت 28",null,"عصام 28",null,"رياض 28",null,"ابراهيم 28",null,"موسى 28",null,null,null,"فراس 28",null,"خالد 28",null,null,null,null,null,"سائد 28"]
[null,"محمد29",null,"خالد 29",null,"زياد29",null,"حسن 29",null,"كرم 29",null,"صابر29",null,"كامل 29",null,"غسان 29",null,"محمود 29",null,"فريد 29",null,"مدحت 29",null,"طلعت 29",null,"عصام 29",null,"رياض 29",null,"ابراهيم 29",null,"موسى 29",null,null,null,"فراس 29",null,"خالد 29",null,null,null,null,null,"سائد 29"]
[null,"محمد30",null,"خالد 30",null,"زياد30",null,"حسن 30",null,"كرم 30",null,"صابر30",null,"كامل 30",null,"غسان 30",null,"محمود 30",null,"فريد 30",null,"مدحت 30",null,"طلعت 30",null,"عصام 30",null,"رياض 30",null,"ابراهيم 30",null,"موسى 30",null,null,null,"فراس 30",null,"خالد 30",null,null,null,null,null,"سائد 30"]
[null,"محمد31",null,"خالد 31",null,"زياد31",null,"حسن 31",null,"كرم 31",null,"صابر31",null,"كامل 31",null,"غسان 31",null,"محمود 31",null,"فريد 31",null,"مدحت 31",null,"طلعت 31",null,"عصام 31",null,"رياض 31",null,"ابراهيم 31",null,"موسى 31",null,null,null,"فراس 31",null,"خالد 31",null,null,null,null,null,"سائد 31"]
[null,"محمد32",null,"خالد 32",null,"زياد32",null,"حسن 32",null,"كرم 32",null,"صابر32",null,"كامل 32",null,"غسان 32",null,"محمود 32",null,"فريد 32",null,"مدحت 32",null,"طلعت 32",null,"عصام 32",null,"رياض 32",null,"ابراهيم 32",null,"موسى 32",null,null,null,"فراس 32",null,"خالد 32",null,null,null,null,null,"سائد 32"]
[null,"محمد33",null,"خالد 33",null,"زياد33",null,"حسن 33",null,"كرم 33",null,"صابر33",null,"كامل 33",null,"غسان 33",null,"محمود 33",null,"فريد 33",null,"مدحت 33",null,"طلعت 33",null,"عصام 33",null,"رياض 33",null,"ابراهيم 33",null,"موسى 33",null,null,null,"فراس 33",null,"خالد 33",null,null,null,null,null,"سائد 33"]
[null,"محمد34",null,"خالد 34",null,"زياد34",null,"حسن 34",null,"كرم 34",null,"صابر34",null,"كامل 34",null,"غسان 34",null,"محمود 34",null,"فريد 34",null,"مدحت 34",null,"طلعت 34",null,"عصام 34",null,"رياض 34",null,"ابراهيم 34",null,"موسى 34",null,null,null,"فراس 34",null,"خالد 34",null,null,null,null,null,"سائد 34"]
[null,"محمد35",null,"خالد 35",null,"زياد35",null,"حسن 35",null,"كرم 35",null,"صابر35",null,"كامل 35",null,"غسان 35",null,"محمود 35",null,"فريد 35",null,"مدحت 35",null,"طلعت 35",null,"عصام 35",null,"رياض 35",null,"ابراهيم 35",null,"موسى 35",null,null,null,"فراس 35",null,"خالد 35",null,null,null,null,null,"سائد 35"]
[null,"محمد36",null,"خالد 36",null,"زياد36",null,"حسن 36",null,"كرم 36",null,"صابر36",null,"كامل 36",null,"غسان 36",null,"محمود 36",null,"فريد 36",null,"مدحت 36",null,"طلعت 36",null,"عصام 36",null,"رياض 36",null,"ابراهيم 36",null,"موسى 36",null,null,null,"فراس 36",null,"خالد 36",null,null,null,null,null,"سائد 36"]
[null,"محمد37",null,"خالد 37",null,"زياد37",null,"حسن 37",null,"كرم 37",null,"صابر37",null,"كامل 37",null,"غسان 37",null,"محمود 37",null,"فريد 37",null,"مدحت 37",null,"طلعت 37",null,"عصام 37",null,"رياض 37",null,"ابراهيم 37",null,"موسى 37",null,null,null,"فراس 37",null,"خالد 37",null,null,null,null,null,"سائد 37"]
[null,"محمد38",null,"خالد 38",null,"زياد38",null,"حسن 38",null,"كرم 38",null,"صابر38",null,"كامل 38",null,"غسان 38",null,"محمود 38",null,"فريد 38",null,"مدحت 38",null,"طلعت 38",null,"عصام 38",null,"رياض 38",null,"ابراهيم 38",null,"موسى 38",null,null,null,"فراس 38",null,"خالد 38",null,null,null,null,null,"سائد 38"]
[null,"محمد39",null,"خالد 39",null,"زياد39",null,"حسن 39",null,"كرم 39",null,"صابر39",null,"كامل 39",null,"غسان 39",null,"محمود 39",null,"فريد 39",null,"مدحت 39",null,"طلعت 39",null,"عصام 39",null,"رياض 39",null,"ابراهيم 39",null,"موسى 39",null,null,null,"فراس 39",null,"خالد 39",null,null,null,null,null,"سائد 39"]
[null,"محمد40",null,"خالد 40",null,"زياد40",null,"حسن 40",null,"كرم 40",null,"صابر40",null,"كامل 40",null,"غسان 40",null,"محمود 40",null,"فريد 40",null,"مدحت 40",null,"طلعت 40",null,"عصام 40",null,"رياض 40",null,"ابراهيم 40",null,"موسى 40",null,null,null,"فراس 40",null,"خالد 40",null,null,null,null,null,"سائد 40"]
[null,"محمد41",null,"خالد 41",null,"زياد41",null,"حسن 41",null,"كرم 41",null,"صابر41",null,"كامل 41",null,"غسان 41",null,"محمود 41",null,"فريد 41",null,"مدحت 41",null,"طلعت 41",null,"عصام 41",null,"رياض 41",null,"ابراهيم 41",null,"موسى 41",null,null,null,"فراس 41",null,null,null,null,null,null,null,"سائد 41"]
[null,"محمد42",null,"خالد 42",null,"زياد42",null,"حسن 42",null,"كرم 42",null,"صابر42",null,"كامل 42",null,"غسان 42",null,"محمود 42",null,"فريد 42",null,"مدحت 42",null,"طلعت 42",null,"عصام 42",null,"رياض 42",null,"ابراهيم 42",null,"موسى 42",null,null,null,"فراس 42",null,null,null,null,null,null,null,"سائد 42"]
[null,"محمد43",null,"خالد 43",null,"زياد43",null,"حسن 43",null,"كرم 43",null,"صابر43",null,"كامل 43",null,"غسان 43",null,"محمود 43",null,"فريد 43",null,"مدحت 43",null,"طلعت 43",null,"عصام 43",null,"رياض 43",null,"ابراهيم 43",null,"موسى 43",null,null,null,"فراس 43",null,null,null,null,null,null,null,"سائد 43"]
[null,"محمد44",null,"خالد 44",null,"زياد44",null,"حسن 44",null,"كرم 44",null,"صابر44",null,"كامل 44",null,"غسان 44",null,"محمود 44",null,"فريد 44",null,"مدحت 44",null,"طلعت 44",null,"عصام 44",null,"رياض 44",null,"ابراهيم 44",null,"موسى 44",null,null,null,"فراس 44",null,null,null,null,null,null,null,"سائد 44"]
[null,"محمد45",null,"خالد 45",null,"زياد45",null,"حسن 45",null,"كرم 45",null,"صابر45",null,"كامل 45",null,"غسان 45",null,"محمود 45",null,"فريد 45",null,"مدحت 45",null,"طلعت 45",null,"عصام 45",null,"رياض 45",null,"ابراهيم 45",null,"موسى 45",null,null,null,"فراس 45",null,null,null,null,null,null,null,"سائد 45"]
[null,"محمد46",null,"خالد 46",null,"زياد46",null,"حسن 46",null,"كرم 46",null,"صابر46",null,"كامل 46",null,"غسان 46",null,"محمود 46",null,"فريد 46",null,"مدحت 46",null,"طلعت 46",null,"عصام 46",null,"رياض 46",null,"ابراهيم 46",null,"موسى 46",null,null,null,"فراس 46",null,null,null,null,null,null,null,"سائد 46"]
[null,"محمد47",null,"خالد 47",null,"زياد47",null,"حسن 47",null,"كرم 47",null,"صابر47",null,"كامل 47",null,"غسان 47",null,"محمود 47",null,"فريد 47",null,"مدحت 47",null,"طلعت 47",null,"عصام 47",null,"رياض 47",null,"ابراهيم 47",null,"موسى 47",null,null,null,"فراس 47",null,null,null,null,null,null,null,"سائد 47"]
[null,"محمد48",null,"خالد 48",null,"زياد48",null,"حسن 48",null,"كرم 48",null,"صابر48",null,"كامل 48",null,"غسان 48",null,"محمود 48",null,"فريد 48",null,"مدحت 48",null,"طلعت 48",null,"عصام 48",null,"رياض 48",null,"ابراهيم 48",null,"موسى 48",null,null,null,"فراس 48",null,null,null,null,null,null,null,"سائد 48"]
[null,"محمد49",null,"خالد 49",null,"زياد49",null,"حسن 49",null,"كرم 49",null,"صابر49",null,"كامل 49",null,"غسان 49",null,"محمود 49",null,"فريد 49",null,"مدحت 49",null,"طلعت 49",null,"عصام 49",null,"رياض 49",null,"ابراهيم 49",null,"موسى 49",null,null,null,"فراس 49",null,null,null,null,null,null,null,"سائد 49"]
[null,"محمد50",null,"خالد 50",null,"زياد50",null,"حسن 50",null,"كرم 50",null,"صابر50",null,"كامل 50",null,"غسان 50",null,"محمود 50",null,"فريد 50",null,"مدحت 50",null,"طلعت 50",null,"عصام 50",null,"رياض 50",null,"ابراهيم 50",null,"موسى 50",null,null,null,"فراس 50",null,null,null,null,null,null,null,"سائد 50"]
[null,"محمد51",null,"خالد 51",null,"زياد51",null,"حسن 51",null,"كرم 51",null,"صابر51",null,"كامل 51",null,"غسان 51",null,"محمود 51",null,"فريد 51",null,"مدحت 51",null,"طلعت 51",null,"عصام 51",null,"رياض 51",null,"ابراهيم 51",null,"موسى 51",null,null,null,"فراس 51",null,null,null,null,null,null,null,"سائد 51"]
[null,"محمد52",null,"خالد 52",null,"زياد52",null,"حسن 52",null,"كرم 52",null,"صابر52",null,"كامل 52",null,"غسان 52",null,"محمود 52",null,"فريد 52",null,"مدحت 52",null,"طلعت 52",null,"عصام 52",null,"رياض 52",null,"ابراهيم 52",null,"موسى 52",null,null,null,"فراس 52"]
[null,"محمد53",null,"خالد 53",null,"زياد53",null,"حسن 53",null,"كرم 53",null,"صابر53",null,"كامل 53",null,"غسان 53",null,"محمود 53",null,"فريد 53",null,"مدحت 53",null,"طلعت 53",null,"عصام 53",null,"رياض 53",null,"ابراهيم 53",null,"موسى 53",null,null,null,"فراس 53"]
[null,"محمد54",null,"خالد 54",null,"زياد54",null,"حسن 54",null,"كرم 54",null,"صابر54",null,"كامل 54",null,"غسان 54",null,"محمود 54",null,"فريد 54",null,"مدحت 54",null,"طلعت 54",null,"عصام 54",null,"رياض 54",null,"ابراهيم 54",null,"موسى 54",null,null,null,"فراس 54"]
[null,"محمد55",null,"خالد 55",null,"زياد55",null,"حسن 55",null,null,null,"صابر55",null,"كامل 55",null,"غسان 55",null,"محمود 55",null,"فريد 55",null,"مدحت 55",null,"طلعت 55",null,"عصام 55",null,"رياض 55",null,"ابراهيم 55",null,"موسى 55",null,null,null,"فراس 55"]
[null,"محمد56",null,"خالد 56",null,"زياد56",null,null,null,null,null,null,null,"كامل 56",null,"غسان 56",null,"محمود 56",null,"فريد 56",null,"مدحت 56",null,"طلعت 56",null,"عصام 56",null,"رياض 56",null,"ابراهيم 56",null,"موسى 56",null,null,null,"فراس 56"]
[null,"محمد57",null,"خالد 57",null,"زياد57",null,null,null,null,null,null,null,null,null,"غسان 57",null,"محمود 57",null,"فريد 57",null,"مدحت 57",null,"طلعت 57",null,"عصام 57",null,"رياض 57",null,"ابراهيم 57",null,"موسى 57",null,null,null,"فراس 57"]
[null,"محمد58",null,"خالد 58",null,"زياد58",null,null,null,null,null,null,null,null,null,"غسان 58",null,"محمود 58",null,"فريد 58",null,"مدحت 58",null,"طلعت 58",null,"عصام 58",null,"رياض 58",null,"ابراهيم 58",null,"موسى 58",null,null,null,"فراس 58"]
[null,"محمد59",null,"خالد 59",null,"زياد59",null,null,null,null,null,null,null,null,null,"غسان 59",null,"محمود 59",null,"فريد 59",null,"مدحت 59",null,"طلعت 59",null,"عصام 59",null,"رياض 59",null,"ابراهيم 59",null,"موسى 59",null,null,null,"فراس 59"]
[null,null,null,null,null,null,null,null,null,null,null,null,null,null,null,"غسان 60",null,"محمود 60",null,null,null,null,null,null,null,null,null,null,null,null,null,null,null,null,null,"فراس 60"]
[null,null,null,null,null,null,null,null,null,null,null,null,null,null,null,"غسان 61",null,"محمود 61",null,null,null,null,null,null,null,null,null,null,null,null,null,null,null,null,null,"فراس 61"]
[null,null,null,null,null,null,null,null,null,null,null,null,null,null,null,"غسان 62",null,"محمود 62",null,null,null,null,null,null,null,null,null,null,null,null,null,null,null,null,null,"فراس 62"]
[null,null,null,null,null,null,null,null,null,null,null,null,null,null,null,"غسان 63",null,null,null,null,null,null,null,null,null,null,null,null,null,null,null,null,null,null,null,"فراس 63"]
[null,null,null,null,null,null,null,null,null,null,null,null,null,null,null,"غسان 64",null,null,null,null,null,null,null,null,null,null,null,null,null,null,null,null,null,null,null,"فراس 64"]
[null,null,null,null,null,null,null,null,null,null,null,null,null,null,null,"غسان 65",null,null,null,null,null,null,null,null,null,null,null,null,null,null,null,null,null,null,null,"فراس 65"]
[null,null,null,null,null,null,null,null,null,null,null,null,null,null,null,"غسان 66",null,null,null,null,null,null,null,null,null,null,null,null,null,null,null,null,null,null,null,"فراس 66"]
[null,null,null,null,null,null,null,null,null,null,null,null,null,null,null,"غسان 67",null,null,null,null,null,null,null,null,null,null,null,null,null,null,null,null,null,null,null,"فراس 67"]
[null,null,null,null,null,null,null,null,null,null,null,null,null,null,null,"غسان 68"]
[]
[]
[]
[]
[]
[]
[]
[]
[]
[]
[]
[]
[]
[]
[]
[]
[]
[]
[]
[]
[]
[]
[]
[]
[]
[]
[]
[]
[]
[]
[]
[]
[]
[]
[]
[]
[]
[]
[]
[]
[]
[]
[]
[]
[]
[]
[]
[]
[]
[]
[]
[null,null,null,null,null,null,null,null,null,null,null,null,null,null,null,null,120]
[null,null,null,null,null,null,null,null,null,null,null,null,null,null,null,null,121]
[null,null,null,null,null,null,null,null,null,null,null,null,null,null,null,null,122]
[null,null,null,null,null,null,null,null,null,null,null,null,null,null,null,null,123]
[null,null,null,null,null,null,null,null,null,null,null,null,null,null,null,null,124]
[null,null,null,null,null,null,null,null,null,null,null,null,null,null,null,null,125]
[null,null,null,null,null,null,null,null,null,null,null,null,null,null,null,null,126]
[null,null,null,null,null,null,null,null,null,null,null,null,null,null,null,null,127]
[null,null,null,null,null,null,null,null,null,null,null,null,null,null,null,null,128]
[null,null,null,null,null,null,null,null,null,null,null,null,null,null,null,null,129]
[null,null,null,null,null,null,null,null,null,null,null,null,null,null,null,null,130]

{"sheet":"data","index":1,"n_rows":29,"n_cols":14,"rows_kept":29,"cut":false,"hidden":false,"merged":[]}
[]
[]
["الرقم","الصف و الشعبة ","اسم معلم المادة ","المادة الدراسية "]
[1,"الصف العاشر أ"]
[2,"الصف العاشر ب"]
[3,"الصف العاشر ج",null,null,null,null,null,null,null,null,null,null,null,"الصف العاشر أ"]
[4,"الصف العاشر د",null,null,null,null,null,null,null,null,null,null,null,"الصف العاشر ب"]
[5,"الحادي عشر العلمي أ",null,null,null,null,null,null,null,null,null,null,null,"الصف العاشر ج"]
[6,"الحادي عشر العلمي ب",null,null,null,null,null,null,null,null,null,null,null,"الصف العاشر د"]
[7,null,null,null,null,null,null,null,null,null,null,null,null,"الحادي عشر العلمي أ"]
[8,null,null,null,null,null,null,null,null,null,null,null,null,"الحادي عشر العلمي ب"]
[9,null,null,null,null,null,null,null,null,null,null,null,null,"الحادي عشر العلمي ج"]
[10,null,null,null,null,null,null,null,null,null,null,null,null,"الحادي عشر العلمي د"]
[11,null,null,null,null,null,null,null,null,null,null,null,null,"الحادي عشر الادبي و"]
[12,null,null,null,null,null,null,null,null,null,null,null,null,"الحادي عشر الادبي أ"]
[13,null,null,null,null,null,null,null,null,null,null,null,null,"الحادي عشر الادبي ب"]
[14,null,null,null,null,null,null,null,null,null,null,null,null,"الحادي عشر الادبي ج"]
[15,null,null,null,null,null,null,null,null,null,null,null,null,"الحادي عشر الادبي د"]
[16,null,null,null,null,null,null,null,null,null,null,null,null,"الحادي عشر الادبي هـ"]
[17,null,null,null,null,null,null,null,null,null,null,null,null,"الثاني عشر العلمي ج"]
[18,null,null,null,null,null,null,null,null,null,null,null,null,"الثاني عشر العلمي أ"]
[19,null,null,null,null,null,null,null,null,null,null,null,null,"الثاني عشر العلمي ب"]
[20,null,null,null,null,null,null,null,null,null,null,null,null,"الثاني عشر الادبي أ"]
[21,null,null,null,null,null,null,null,null,null,null,null,null,"الثاني عشر الادبي ب"]
[22,null,null,null,null,null,null,null,null,null,null,null,null,"الثاني عشر الادبي ج"]
[23,null,null,null,null,null,null,null,null,null,null,null,null,"الثاني عشر الادبي د"]
[24,null,null,null,null,null,null,null,null,null,null,null,null,"الثاني عشر الادبي ز"]
[null,null,null,null,null,null,null,null,null,null,null,null,null,"الثاني عشر الادبي هـ"]
[null,null,null,null,null,null,null,null,null,null,null,null,null,"الثاني عشر الادبي و"]

{"sheet":"Book","index":2,"n_rows":897,"n_cols":19,"rows_kept":897,"cut":false,"hidden":false,"merged":[[615,18,615,19],[616,18,616,19],[617,18,617,19],[618,18,618,19],[619,18,619,19],[620,18,620,19],[625,18,625,19],[626,18,626,19],[627,18,627,19],[621,18,621,19],[622,18,622,19],[623,18,623,19],[624,18,624,19],[673,11,673,13],[673,14,673,18],[673,3,673,7],[677,18,677,19],[678,18,678,19],[529,18,529,19],[530,18,530,19],[535,18,535,19],[537,18,537,19],[582,18,582,19],[583,18,583,19],[584,18,584,19],[585,18,585,19],[586,18,586,19],[566,18,566,19],[567,18,567,19],[581,18,581,19],[565,18,565,19],[563,18,563,19],[564,18,564,19],[551,18,551,19],[675,18,676,19],[588,18,588,19],[614,18,614,19],[446,18,446,19],[441,18,441,19],[513,3,513,7],[545,3,545,7],[518,18,518,19],[519,18,519,19],[520,18,520,19],[525,18,525,19],[417,11,417,13],[417,14,417,18],[449,11,449,13],[449,14,449,18],[517,18,517,19],[506,18,506,19],[507,18,507,19],[509,18,509,19],[510,18,510,19],[460,18,460,19],[461,18,461,19],[453,18,453,19],[454,18,454,19],[455,18,455,19],[432,18,432,19],[442,18,442,19],[419,18,420,19],[406,18,406,19],[407,18,407,19],[408,18,408,19],[409,18,409,19],[393,18,393,19],[439,18,439,19],[440,18,440,19],[445,18,445,19],[427,18,427,19],[428,18,428,19],[429,18,429,19],[430,18,430,19],[431,18,431,19],[411,18,411,19],[385,11,385,13],[389,18,389,19],[390,18,390,19],[405,18,405,19],[394,18,394,19],[395,18,395,19],[396,18,396,19],[397,18,397,19],[398,18,398,19],[399,18,399,19],[400,18,400,19],[401,18,401,19],[402,18,402,19],[403,18,403,19],[404,18,404,19],[321,11,321,13],[321,14,321,18],[353,11,353,13],[353,14,353,18],[330,18,330,19],[301,18,301,19],[302,18,302,19],[303,18,303,19],[306,18,306,19],[307,18,307,19],[308,18,308,19],[309,18,309,19],[310,18,310,19],[311,18,311,19],[312,18,312,19],[313,18,313,19],[314,18,314,19],[315,18,315,19],[316,18,316,19],[317,18,317,19],[318,18,318,19],[323,18,324,19],[325,18,325,19],[327,18,327,19],[158,18,158,19],[163,18,164,19],[165,18,165,19],[321,3,321,7],[225,11,225,13],[225,14,225,18],[257,11,257,13],[257,14,257,18],[225,3,225,7],[257,3,257,7],[231,18,231,19],[232,18,232,19],[289,11,289,13],[237,18,237,19],[238,18,238,19],[239,18,239,19],[240,18,240,19],[241,18,241,19],[242,18,242,19],[243,18,243,19],[244,18,244,19],[245,18,245,19],[246,18,246,19],[247,18,247,19],[97,11,97,13],[97,14,97,18],[97,3,97,7],[129,11,129,13],[129,14,129,18],[78,18,78,19],[79,18,79,19],[80,18,80,19],[81,18,81,19],[101,18,101,19],[102,18,102,19],[103,18,103,19],[104,18,104,19],[105,18,105,19],[106,18,106,19],[107,18,107,19],[108,18,108,19],[109,18,109,19],[110,18,110,19],[111,18,111,19],[112,18,112,19],[122,18,122,19],[123,18,123,19],[118,18,118,19],[33,11,33,13],[33,14,33,18],[65,11,65,13],[65,14,65,18],[33,3,33,7],[199,18,199,19],[85,18,85,19],[86,18,86,19],[87,18,87,19],[88,18,88,19],[89,18,89,19],[90,18,90,19],[91,18,91,19],[92,18,92,19],[93,18,93,19],[94,18,94,19],[99,18,100,19],[62,18,62,19],[55,18,55,19],[35,18,36,19],[50,18,50,19],[51,18,51,19],[52,18,52,19],[129,3,129,7],[505,18,505,19],[501,18,501,19],[502,18,502,19],[353,3,353,7],[131,18,132,19],[133,18,133,19],[138,18,138,19],[329,18,329,19],[161,3,161,7],[161,11,161,13],[161,14,161,18],[193,11,193,13],[193,14,193,18],[139,18,139,19],[140,18,140,19],[141,18,141,19],[142,18,142,19],[147,18,147,19],[148,18,148,19],[145,18,145,19],[146,18,146,19],[149,18,149,19],[220,18,220,19],[156,18,156,19],[37,18,37,19],[38,18,38,19],[39,18,39,19],[40,18,40,19],[195,18,196,19],[197,18,197,19],[73,18,73,19],[67,8,68,8],[67,18,68,19],[70,18,70,19],[69,18,69,19],[72,18,72,19],[74,18,74,19],[75,18,75,19],[56,18,56,19],[57,18,57,19],[58,18,58,19],[59,18,59,19],[60,18,60,19],[113,18,113,19],[114,18,114,19],[115,18,115,19],[116,18,116,19],[117,18,117,19],[71,18,71,19],[65,3,65,7],[82,18,82,19],[83,18,83,19],[84,18,84,19],[41,18,41,19],[42,18,42,19],[43,18,43,19],[44,18,44,19],[45,18,45,19],[46,18,46,19],[47,18,47,19],[48,18,48,19],[49,18,49,19],[53,18,53,19],[54,18,54,19],[61,18,61,19],[77,18,77,19],[76,18,76,19],[163,8,164,8],[99,0,100,0],[99,1,100,1],[99,8,100,8],[195,8,196,8],[131,8,132,8],[163,0,164,0],[193,3,193,7],[131,0,132,0],[131,1,132,1],[119,18,119,19],[120,18,120,19],[121,18,121,19],[150,18,150,19],[151,18,151,19],[152,18,152,19],[153,18,153,19],[154,18,154,19],[155,18,155,19],[124,18,124,19],[125,18,125,19],[126,18,126,19],[134,18,134,19],[135,18,135,19],[136,18,136,19],[137,18,137,19],[143,18,143,19],[144,18,144,19],[157,18,157,19],[211,18,211,19],[212,18,212,19],[213,18,213,19],[214,18,214,19],[215,18,215,19],[216,18,216,19],[217,18,217,19],[218,18,218,19],[166,18,166,19],[167,18,167,19],[168,18,168,19],[169,18,169,19],[170,18,170,19],[171,18,171,19],[172,18,172,19],[173,18,173,19],[174,18,174,19],[175,18,175,19],[176,18,176,19],[177,18,177,19],[178,18,178,19],[179,18,179,19],[180,18,180,19],[481,3,481,7],[577,3,577,7],[609,3,609,7],[259,0,260,0],[259,1,260,1],[259,8,260,8],[289,3,289,7],[387,0,388,0],[387,1,388,1],[387,8,388,8],[419,0,420,0],[419,1,420,1],[419,8,420,8],[451,0,452,0],[451,1,452,1],[451,8,452,8],[483,0,484,0],[483,1,484,1],[483,8,484,8],[515,0,516,0],[385,3,385,7],[417,3,417,7],[449,3,449,7],[515,1,516,1],[181,18,181,19],[182,18,182,19],[183,18,183,19],[184,18,184,19],[185,18,185,19],[186,18,186,19],[187,18,187,19],[188,18,188,19],[189,18,189,19],[190,18,190,19],[200,18,200,19],[201,18,201,19],[198,18,198,19],[221,18,221,19],[222,18,222,19],[227,18,228,19],[229,18,229,19],[230,18,230,19],[219,18,219,19],[205,18,205,19],[206,18,206,19],[207,18,207,19],[208,18,208,19],[202,18,202,19],[203,18,203,19],[204,18,204,19],[209,18,209,19],[210,18,210,19],[233,18,233,19],[234,18,234,19],[235,18,235,19],[236,18,236,19],[251,18,251,19],[252,18,252,19],[253,18,253,19],[254,18,254,19],[259,18,260,19],[248,18,248,19],[249,18,249,19],[250,18,250,19],[261,18,261,19],[262,18,262,19],[268,18,268,19],[269,18,269,19],[263,18,263,19],[266,18,266,19],[264,18,264,19],[265,18,265,19],[267,18,267,19],[270,18,270,19],[271,18,271,19],[272,18,272,19],[273,18,273,19],[274,18,274,19],[275,18,275,19],[276,18,276,19],[277,18,277,19],[278,18,278,19],[279,18,279,19],[280,18,280,19],[281,18,281,19],[282,18,282,19],[283,18,283,19],[284,18,284,19],[285,18,285,19],[286,18,286,19],[291,18,292,19],[289,14,289,18],[293,18,293,19],[294,18,294,19],[295,18,295,19],[296,18,296,19],[304,18,304,19],[305,18,305,19],[297,18,297,19],[298,18,298,19],[299,18,299,19],[300,18,300,19],[328,18,328,19],[333,18,333,19],[334,18,334,19],[335,18,335,19],[336,18,336,19],[337,18,337,19],[326,18,326,19],[331,18,331,19],[332,18,332,19],[338,18,338,19],[339,18,339,19],[340,18,340,19],[341,18,341,19],[342,18,342,19],[343,18,343,19],[376,18,376,19],[391,18,391,19],[392,18,392,19],[377,18,377,19],[378,18,378,19],[379,18,379,19],[380,18,380,19],[381,18,381,19],[385,14,385,18],[350,18,350,19],[344,18,344,19],[345,18,345,19],[346,18,346,19],[387,18,388,19],[366,18,366,19],[367,18,367,19],[368,18,368,19],[369,18,369,19],[504,18,504,19],[498,18,498,19],[499,18,499,19],[494,18,494,19],[495,18,495,19],[361,18,361,19],[362,18,362,19],[355,18,356,19],[357,18,357,19],[358,18,358,19],[363,18,363,19],[364,18,364,19],[365,18,365,19],[438,18,438,19],[410,18,410,19],[412,18,412,19],[413,18,413,19],[414,18,414,19],[421,18,421,19],[422,18,422,19],[423,18,423,19],[424,18,424,19],[425,18,425,19],[426,18,426,19],[473,18,473,19],[474,18,474,19],[483,18,484,19],[477,18,477,19],[478,18,478,19],[481,14,481,18],[475,18,475,19],[476,18,476,19],[500,18,500,19],[489,18,489,19],[490,18,490,19],[491,18,491,19],[492,18,492,19],[493,18,493,19],[496,18,496,19],[497,18,497,19],[485,18,485,19],[486,18,486,19],[487,18,487,19],[488,18,488,19],[553,18,553,19],[554,18,554,19],[555,18,555,19],[556,18,556,19],[579,18,580,19],[574,18,574,19],[568,18,568,19],[569,18,569,19],[570,18,570,19],[571,18,571,19],[572,18,572,19],[573,18,573,19],[577,14,577,18],[503,18,503,19],[603,18,603,19],[604,18,604,19],[605,18,605,19],[606,18,606,19],[613,18,613,19],[591,18,591,19],[595,18,595,19],[596,18,596,19],[592,18,592,19],[593,18,593,19],[594,18,594,19],[597,18,597,19],[598,18,598,19],[599,18,599,19],[609,14,609,18],[611,18,612,19],[549,18,549,19],[550,18,550,19],[540,18,540,19],[541,18,541,19],[542,18,542,19],[521,18,521,19],[552,18,552,19],[631,18,631,19],[632,18,632,19],[628,18,628,19],[629,18,629,19],[633,18,633,19],[634,18,634,19],[635,18,635,19],[645,18,645,19],[646,18,646,19],[630,18,630,19],[647,18,647,19],[643,18,644,19],[636,18,636,19],[637,18,637,19],[638,18,638,19],[641,14,641,18],[698,18,698,19],[699,18,699,19],[700,18,700,19],[679,18,679,19],[680,18,680,19],[685,18,685,19],[681,18,681,19],[682,18,682,19],[683,18,683,19],[684,18,684,19],[701,18,701,19],[702,18,702,19],[657,18,657,19],[658,18,658,19],[659,18,659,19],[660,18,660,19],[661,18,661,19],[662,18,662,19],[669,18,669,19],[670,18,670,19],[663,18,663,19],[664,18,664,19],[665,18,665,19],[666,18,666,19],[667,18,667,19],[668,18,668,19],[694,18,694,19],[695,18,695,19],[696,18,696,19],[697,18,697,19],[686,18,686,19],[2,0,3,0],[2,1,3,1],[2,8,3,8],[0,4,0,5],[355,0,356,0],[355,1,356,1],[355,8,356,8],[291,1,292,1],[291,8,292,8],[227,0,228,0],[323,0,324,0],[323,1,324,1],[323,8,324,8],[291,0,292,0],[227,1,228,1],[227,8,228,8],[195,0,196,0],[195,1,196,1],[35,0,36,0],[35,1,36,1],[35,8,36,8],[67,0,68,0],[67,1,68,1],[163,1,164,1],[370,18,370,19],[382,18,382,19],[371,18,371,19],[372,18,372,19],[373,18,373,19],[374,18,374,19],[375,18,375,19],[347,18,347,19],[348,18,348,19],[349,18,349,19],[359,18,359,19],[360,18,360,19],[481,11,481,13],[462,18,462,19],[463,18,463,19],[464,18,464,19],[465,18,465,19],[466,18,466,19],[443,18,443,19],[444,18,444,19],[433,18,433,19],[434,18,434,19],[435,18,435,19],[436,18,436,19],[437,18,437,19],[451,18,452,19],[471,18,471,19],[468,18,468,19],[469,18,469,19],[470,18,470,19],[467,18,467,19],[456,18,456,19],[457,18,457,19],[458,18,458,19],[459,18,459,19],[472,18,472,19],[515,8,516,8],[515,18,516,19],[508,18,508,19],[547,0,548,0],[547,1,548,1],[547,8,548,8],[547,18,548,19],[536,18,536,19],[538,18,538,19],[531,18,531,19],[532,18,532,19],[533,18,533,19],[534,18,534,19],[526,18,526,19],[527,18,527,19],[528,18,528,19],[522,18,522,19],[523,18,523,19],[513,11,513,13],[513,14,513,18],[545,11,545,13],[545,14,545,18],[524,18,524,19],[539,18,539,19],[611,0,612,0],[611,1,612,1],[611,8,612,8],[609,11,609,13],[561,18,561,19],[562,18,562,19],[557,18,557,19],[558,18,558,19],[559,18,559,19],[560,18,560,19],[579,0,580,0],[579,1,580,1],[579,8,580,8],[577,11,577,13],[600,18,600,19],[601,18,601,19],[602,18,602,19],[587,18,587,19],[589,18,589,19],[590,18,590,19],[643,0,644,0],[643,1,644,1],[643,8,644,8],[641,11,641,13],[675,0,676,0],[675,1,676,1],[675,8,676,8],[692,18,692,19],[693,18,693,19],[688,18,688,19],[689,18,689,19],[690,18,690,19],[691,18,691,19],[648,18,648,19],[649,18,649,19],[650,18,650,19],[655,18,655,19],[656,18,656,19],[651,18,651,19],[652,18,652,19],[653,18,653,19],[654,18,654,19],[641,3,641,7],[687,18,687,19],[705,3,705,7],[705,11,705,13],[705,14,705,18],[707,0,708,0],[707,1,708,1],[707,8,708,8],[707,18,708,19],[709,18,709,19],[710,18,710,19],[711,18,711,19],[712,18,712,19],[713,18,713,19],[714,18,714,19],[715,18,715,19],[716,18,716,19],[717,18,717,19],[718,18,718,19],[719,18,719,19],[720,18,720,19],[721,18,721,19],[722,18,722,19],[723,18,723,19],[724,18,724,19],[725,18,725,19],[726,18,726,19],[727,18,727,19],[728,18,728,19],[729,18,729,19],[730,18,730,19],[731,18,731,19],[732,18,732,19],[733,18,733,19],[734,18,734,19],[737,3,737,7],[737,11,737,13],[737,14,737,18],[739,0,740,0],[739,1,740,1],[739,8,740,8],[739,18,740,19],[741,18,741,19],[742,18,742,19],[743,18,743,19],[744,18,744,19],[745,18,745,19],[746,18,746,19],[747,18,747,19],[748,18,748,19],[749,18,749,19],[750,18,750,19],[751,18,751,19],[752,18,752,19],[753,18,753,19],[754,18,754,19],[755,18,755,19],[756,18,756,19],[757,18,757,19],[758,18,758,19],[759,18,759,19],[760,18,760,19],[761,18,761,19],[762,18,762,19],[763,18,763,19],[764,18,764,19],[765,18,765,19],[766,18,766,19],[769,3,769,7],[769,11,769,13],[769,14,769,18],[771,0,772,0],[771,1,772,1],[771,8,772,8],[771,18,772,19],[773,18,773,19],[774,18,774,19],[775,18,775,19],[776,18,776,19],[777,18,777,19],[778,18,778,19],[779,18,779,19],[780,18,780,19],[781,18,781,19],[782,18,782,19],[783,18,783,19],[784,18,784,19],[785,18,785,19],[786,18,786,19],[787,18,787,19],[788,18,788,19],[789,18,789,19],[790,18,790,19],[814,18,814,19],[815,18,815,19],[816,18,816,19],[817,18,817,19],[805,18,805,19],[806,18,806,19],[807,18,807,19],[808,18,808,19],[791,18,791,19],[792,18,792,19],[793,18,793,19],[794,18,794,19],[795,18,795,19],[796,18,796,19],[797,18,797,19],[798,18,798,19],[827,18,827,19],[828,18,828,19],[829,18,829,19],[801,3,801,7],[801,11,801,13],[801,14,801,18],[803,0,804,0],[803,1,804,1],[803,8,804,8],[803,18,804,19],[818,18,818,19],[819,18,819,19],[820,18,820,19],[821,18,821,19],[822,18,822,19],[823,18,823,19],[824,18,824,19],[825,18,825,19],[826,18,826,19],[809,18,809,19],[810,18,810,19],[811,18,811,19],[812,18,812,19],[813,18,813,19],[830,18,830,19],[833,3,833,7],[833,11,833,13],[833,14,833,18],[835,0,836,0],[835,1,836,1],[835,8,836,8],[835,18,836,19],[837,18,837,19],[838,18,838,19],[839,18,839,19],[840,18,840,19],[841,18,841,19],[842,18,842,19],[843,18,843,19],[844,18,844,19],[845,18,845,19],[846,18,846,19],[847,18,847,19],[848,18,848,19],[849,18,849,19],[850,18,850,19],[851,18,851,19],[852,18,852,19],[853,18,853,19],[854,18,854,19],[855,18,855,19],[856,18,856,19],[857,18,857,19],[858,18,858,19],[859,18,859,19],[860,18,860,19],[861,18,861,19],[862,18,862,19],[865,3,865,7],[865,11,865,13],[865,14,865,18],[867,0,868,0],[867,1,868,1],[867,8,868,8],[867,18,868,19],[869,18,869,19],[870,18,870,19],[871,18,871,19],[872,18,872,19],[873,18,873,19],[874,18,874,19],[875,18,875,19],[876,18,876,19],[877,18,877,19],[878,18,878,19],[879,18,879,19],[880,18,880,19],[881,18,881,19],[882,18,882,19],[892,18,892,19],[893,18,893,19],[894,18,894,19],[883,18,883,19],[884,18,884,19],[885,18,885,19],[886,18,886,19],[887,18,887,19],[888,18,888,19],[889,18,889,19],[890,18,890,19],[891,18,891,19]]}
[null,null,null,null,"الشعبة (",null,null,")"]
[]
["الرقم المتسلسل","الاســــــــــــــــــم",null,"أ","ب","جـ","د","هـ","ملحوظــــــات"]
[null,null,null,"التقـــــــــويم الاول","التقـــــــــويم الثاني","التقـــــــــويم الثالث","الاختبـــار النهــائي","المجمـــــــــــــــوع"]
[null,null,null,0.2,0.2,0.2,0.4,1]
[null,null,null,null,null,null,null,{"$f":"IF(COUNT(D6:G6)>3,SUM(D6:G6),\"\")","v":""}]
[null,null,null,null,null,null,null,{"$f":"IF(COUNT(D7:G7)>3,SUM(D7:G7),\"\")","v":""}]
[null,null,null,null,null,null,null,""]
[null,null,null,null,null,null,null,""]
[null,null,null,null,null,null,null,""]
[null,null,null,null,null,null,null,""]
[null,null,null,null,null,null,null,""]
[null,null,null,null,null,null,null,""]
[null,null,null,null,null,null,null,""]
[null,null,null,null,null,null,null,""]
[null,null,null,null,null,null,null,""]
[null,null,null,null,null,null,null,""]
[null,null,null,null,null,null,null,""]
[null,null,null,null,null,null,null,""]
[null,null,null,null,null,null,null,""]
[null,null,null,null,null,null,null,""]
[null,null,null,null,null,null,null,""]
[null,null,null,null,null,null,null,""]
[null,null,null,null,null,null,null,""]
[null,null,null,null,null,null,null,""]
[null,null,null,null,null,null,null,""]
[null,null,null,null,null,null,null,""]
[null,null,null,null,null,null,null,""]
[null,null,null,null,null,null,null,""]
[null,null,null,null,null,null,null,""]
[]
[]
[null,null,null,null,"-58-",null,null,null,null,null,null,null,null,null,null,null,"-3-"]
[null,null,null,"الصف: ",null,null,null,null,"الشعبة ",null,null,"   المادة الدراسية  "]
[]
["الرقم المتسلسل","الاســــــــــــــــــم",null,"أ","ب","جـ","د","هـ","ملحوظــــــات",null,null,"و","ز","حـ","ط","ي","النتيجة السنوية",null,"ملحوظــــــــات"]
[null,null,null,"التقـــــــــويم الاول","التقـــــــــويم الثاني","التقـــــــــويم الثالث","الاختبـــار النهــائي","المجمـــــــــــــــوع",null,null,null,"التقـــــــــويم الاول","التقـــــــــويم الثاني","التقـــــــــويم الثالث","الاختبـــار النهــائي","المجمـــــــــــــــوع",null,"علامة اختبار الإكمال"]
[null,null,null,0.2,0.2,0.2,0.4,1,null,null,null,0.2,0.2,0.2,0.4,1,1]
[null,"محمد1","احمد محمد 1"]
[null,"محمد2","محمد 1"]
[null,"محمد3","محمد 10"]
[null,"محمد4","محمد 11"]
[null,"محمد5","محمد 13"]
[null,"محمد6","محمد 14"]
[null,"محمد7","محمد 15"]
[null,"محمد8","محمد 16"]
[null,"محمد9","محمد 17"]
[null,"محمد10","محمد 18"]
[null,"محمد11","محمد 19"]
[null,"محمد12","محمد 2"]
[null,"محمد13","محمد 20"]
[null,"محمد14","محمد 21"]
[null,"محمد15","محمد 22"]
[null,"محمد16","محمد 23"]
[null,"محمد17","محمد 24"]
[null,"محمد18","محمد 25"]
[null,"محمد19","محمد 26"]
[null,"محمد20","محمد 27"]
[null,"محمد21","محمد 28"]
[null,"محمد22","محمد 29"]
[null,"محمد23","محمد 3"]
[null,"محمد24","محمد 30"]
[null,"محمد25","محمد 31"]
[]
[null,null,null,null,"-4-",null,null,null,null,null,null,null,null,null,null,null,"-57-"]
[null,null,null,"الصف :",null,null,null,null,"الشعبة (       )",null,null,"   المادة الدراسية  "]
[]
["الرقم المتسلسل","الاســــــــــــــــــم",null,"أ","ب","جـ","د","هـ","ملحوظــــــات",null,null,"و","ز","حـ","ط","ي","النتيجة السنوية",null,"ملحوظــــــــات"]
[null,null,null,"التقـــــــــويم الاول","التقـــــــــويم الثاني","التقـــــــــويم الثالث","الاختبـــار النهــائي","المجمـــــــــــــــوع",null,null,null,"التقـــــــــويم الاول","التقـــــــــويم الثاني","التقـــــــــويم الثالث","الاختبـــار النهــائي","المجمـــــــــــــــوع",null,"علامة اختبار الإكمال"]
[null,null,null,0.2,0.2,0.2,0.4,1,null,null,null,0.2,0.2,0.2,0.4,1,1]
[]
[]
[]
[]
[]
[]
[]
[]
[]
[]
[]
[]
[]
[]
[]
[]
[]
[]
[]
[]
[]
[]
[]
[]
[]
[]
[null,null,null,null,"-56-",null,null,null,null,null,null,null,null,null,null,null,"-5-"]
[null,null,null,"الصف : العاشر أ",null,null,null,null,"الشعبة :",null,null,"   المادة الدراسية  "]
[]
["الرقم المتسلسل","الاســــــــــــــــــم",null,"أ","ب","جـ","د","هـ","ملحوظــــــات",null,null,"و","ز","حـ","ط","ي","النتيجة السنوية",null,"ملحوظــــــــات"]
[null,null,null,"التقـــــــــويم الاول","التقـــــــــويم الثاني","التقـــــــــويم الثالث","الاختبـــار النهــائي","المجمـــــــــــــــوع",null,null,null,"التقـــــــــويم الاول","التقـــــــــويم الثاني","التقـــــــــويم الثالث","الاختبـــار النهــائي","المجمـــــــــــــــوع",null,"علامة اختبار الإكمال"]
[null,null,null,0.2,0.2,0.2,0.4,1,null,null,null,0.2,0.2,0.2,0.4,1,1]
[null,"محمد26"]
[null,"محمد27"]
[null,"محمد28"]
[null,"محمد29"]
[null,"محمد30"]
[null,"محمد31"]
[null,"محمد32"]
[null,"محمد33"]
[null,"محمد34"]
[null,"محمد35"]
[null,"محمد36"]
[null,"محمد37"]
[null,"محمد38"]
[null,"محمد39"]
[null,"محمد40"]
[null,"محمد41"]
[null,"محمد42"]
[null,"محمد43"]
[null,"محمد44"]
[null,"محمد45"]
[null,"محمد46"]
[null,"محمد47"]
[null,"محمد48"]
[null,"محمد49"]
[null,"محمد50"]
[]
[null,null,null,null,"-6-",null,null,null,null,null,null,null,null,null,null,null,"-55-"]
[null,null,null,"الصف :",null,null,null,null,"الشعبة (       )",null,null,"   المادة الدراسية  "]
[]
["الرقم المتسلسل","الاســــــــــــــــــم",null,"أ","ب","جـ","د","هـ","ملحوظــــــات",null,null,"و","ز","حـ","ط","ي","النتيجة السنوية",null,"ملحوظــــــــات"]
[null,null,null,"التقـــــــــويم الاول","التقـــــــــويم الثاني","التقـــــــــويم الثالث","الاختبـــار النهــائي","المجمـــــــــــــــوع",null,null,null,"التقـــــــــويم الاول","التقـــــــــويم الثاني","التقـــــــــويم الثالث","الاختبـــار النهــائي","المجمـــــــــــــــوع",null,"علامة اختبار الإكمال"]
[null,null,null,0.2,0.2,0.2,0.4,1,null,null,null,0.2,0.2,0.2,0.4,1,1]
[]
[]
[]
[]
[]
[]
[]
[]
[]
[]
[]
[]
[]
[]
[]
[]
[]
[]
[]
[]
[]
[]
[]
[]
[]
[]
[null,null,null,null,"-54-",null,null,null,null,null,null,null,null,null,null,null,"-7-"]
[null,null,null,"الصف: العاشر أ",null,null,null,null,"الشعبة :",null,null,"   المادة الدراسية  "]
[]
["الرقم المتسلسل","الاســــــــــــــــــم",null,"أ","ب","جـ","د","هـ","ملحوظــــــات",null,null,"و","ز","حـ","ط","ي","النتيجة السنوية",null,"ملحوظــــــــات"]
[null,null,null,"التقـــــــــويم الاول","التقـــــــــويم الثاني","التقـــــــــويم الثالث","الاختبـــار النهــائي","المجمـــــــــــــــوع",null,null,null,"التقـــــــــويم الاول","التقـــــــــويم الثاني","التقـــــــــويم الثالث","الاختبـــار النهــائي","المجمـــــــــــــــوع",null,"علامة اختبار الإكمال"]
[null,null,null,0.2,0.2,0.2,0.4,1,null,null,null,0.2,0.2,0.2,0.4,1,1]
[null,"محمد51"]
[null,"محمد52"]
[null,"محمد53"]
[null,"محمد54"]
[null,"محمد55"]
[null,"محمد56"]
[null,"محمد57"]
[null,"محمد58"]
[null,"محمد59"]
[]
[]
[]
[]
[]
[]
[]
[]
[]
[]
[]
[]
[]
[]
[]
[]
[]
[null,null,null,null,"-8-",null,null,null,null,null,null,null,null,null,null,null,"-53-"]
[null,null,null,"الصف :",null,null,null,null,"الشعبة (       )",null,null,"   المادة الدراسية  "]
[]
["الرقم المتسلسل","الاســــــــــــــــــم",null,"أ","ب","جـ","د","هـ","ملحوظــــــات",null,null,"و","ز","حـ","ط","ي","النتيجة السنوية",null,"ملحوظــــــــات"]
[null,null,null,"التقـــــــــويم الاول","التقـــــــــويم الثاني","التقـــــــــويم الثالث","الاختبـــار النهــائي","المجمـــــــــــــــوع",null,null,null,"التقـــــــــويم الاول","التقـــــــــويم الثاني","التقـــــــــويم الثالث","الاختبـــار النهــائي","المجمـــــــــــــــوع",null,"علامة اختبار الإكمال"]
[null,null,null,0.2,0.2,0.2,0.4,1,null,null,null,0.2,0.2,0.2,0.4,1,1]
[]
[]
[]
[]
[]
[]
[]
[]
[]
[]
[]
[]
[]
[]
[]
[]
[]
[]
[]
[]
[]
[]
[]
[]
[]
[]
[null,null,null,null,"-52-",null,null,null,null,null,null,null,null,null,null,null,"-9-"]
[null,null,null,"الصف : العاشر ب",null,null,null,null,"الشعبة",null,null,"   المادة الدراسية  "]
[]
["الرقم المتسلسل","الاســــــــــــــــــم",null,"أ","ب","جـ","د","هـ","ملحوظــــــات",null,null,"و","ز","حـ","ط","ي","النتيجة السنوية",null,"ملحوظــــــــات"]
[null,null,null,"التقـــــــــويم الاول","التقـــــــــويم الثاني","التقـــــــــويم الثالث","الاختبـــار النهــائي","المجمـــــــــــــــوع",null,null,null,"التقـــــــــويم الاول","التقـــــــــويم الثاني","التقـــــــــويم الثالث","الاختبـــار النهــائي","المجمـــــــــــــــوع",null,"علامة اختبار الإكمال"]
[null,null,null,0.2,0.2,0.2,0.4,1,null,null,null,0.2,0.2,0.2,0.4,1,1]
[null,"خالد 1"]
[null,"خالد 2"]
[null,"خالد 3"]
[null,"خالد 4"]
[null,"خالد 5"]
[null,"خالد 6"]
[null,"خالد 7"]
[null,"خالد 8"]
[null,"خالد 9"]
[null,"خالد 10"]
[null,"خالد 11"]
[null,"خالد 12"]
[null,"خالد 13"]
[null,"خالد 14"]
[null,"خالد 15"]
[null,"خالد 16"]
[null,"خالد 17"]
[null,"خالد 18"]
[null,"خالد 19"]
[null,"خالد 20"]
[null,"خالد 21"]
[null,"خالد 22"]
[null,"خالد 23"]
[null,"خالد 24"]
[null,"خالد 25"]
[]
[null,null,null,null,"-10-",null,null,null,null,null,null,null,null,null,null,null,"-51-"]
[null,null,null,"الصف :",null,null,null,null,"الشعبة (       )",null,null,"   المادة الدراسية  "]
[]
["الرقم المتسلسل","الاســــــــــــــــــم",null,"أ","ب","جـ","د","هـ","ملحوظــــــات",null,null,"و","ز","حـ","ط","ي","النتيجة السنوية",null,"ملحوظــــــــات"]
[null,null,null,"التقـــــــــويم الاول","التقـــــــــويم الثاني","التقـــــــــويم الثالث","الاختبـــار النهــائي","المجمـــــــــــــــوع",null,null,null,"التقـــــــــويم الاول","التقـــــــــويم الثاني","التقـــــــــويم الثالث","الاختبـــار النهــائي","المجمـــــــــــــــوع",null,"علامة اختبار الإكمال"]
[null,null,null,0.2,0.2,0.2,0.4,1,null,null,null,0.2,0.2,0.2,0.4,1,1]
[]
[]
[]
[]
[]
[]
[]
[]
[]
[]
[]
[]
[]
[]
[]
[]
[]
[]
[]
[]
[]
[]
[]
[]
[]
[]
[null,null,null,null,"-50-",null,null,null,null,null,null,null,null,null,null,null,"-11-"]
[null,null,null,"الصف العاشر",null,null,null,null,null,null,null,"   المادة الدراسية  "]
[]
["الرقم المتسلسل","الاســــــــــــــــــم",null,"أ","ب","جـ","د","هـ","ملحوظــــــات",null,null,"و","ز","حـ","ط","ي","النتيجة السنوية",null,"ملحوظــــــــات"]
[null,null,null,"التقـــــــــويم الاول","التقـــــــــويم الثاني","التقـــــــــويم الثالث","الاختبـــار النهــائي","المجمـــــــــــــــوع",null,null,null,"التقـــــــــويم الاول","التقـــــــــويم الثاني","التقـــــــــويم الثالث","الاختبـــار النهــائي","المجمـــــــــــــــوع",null,"علامة اختبار الإكمال"]
[null,null,null,0.2,0.2,0.2,0.4,1,null,null,null,0.2,0.2,0.2,0.4,1,1]
[null,"خالد 26"]
[null,"خالد 27"]
[null,"خالد 28"]
[null,"خالد 29"]
[null,"خالد 30"]
[null,"خالد 31"]
[null,"خالد 32"]
[null,"خالد 33"]
[null,"خالد 34"]
[null,"خالد 35"]
[null,"خالد 36"]
[null,"خالد 37"]
[null,"خالد 38"]
[null,"خالد 39"]
[null,"خالد 40"]
[null,"خالد 41"]
[null,"خالد 42"]
[null,"خالد 43"]
[null,"خالد 44"]
[null,"خالد 45"]
[null,"خالد 46"]
[null,"خالد 47"]
[null,"خالد 48"]
[null,"خالد 49"]
[null,"خالد 50"]
[]
[null,null,null,null,"-12-",null,null,null,null,null,null,null,null,null,null,null,"-49-"]
[null,null,null,"الصف:",null,null,null,null,"الشعبة:",null,null,"   المادة الدراسية  "]
[]
["الرقم المتسلسل","الاســــــــــــــــــم",null,"أ","ب","جـ","د","هـ","ملحوظــــــات",null,null,"و","ز","حـ","ط","ي","النتيجة السنوية",null,"ملحوظــــــــات"]
[null,null,null,"التقـــــــــويم الاول","التقـــــــــويم الثاني","التقـــــــــويم الثالث","الاختبـــار النهــائي","المجمـــــــــــــــوع",null,null,null,"التقـــــــــويم الاول","التقـــــــــويم الثاني","التقـــــــــويم الثالث","الاختبـــار النهــائي","المجمـــــــــــــــوع",null,"علامة اختبار الإكمال"]
[null,null,null,0.2,0.2,0.2,0.4,1,null,null,null,0.2,0.2,0.2,0.4,1,1]
[]
[]
[]
[]
[]
[]
[]
[]
[]
[]
[]
[]
[]
[]
[]
[]
[]
[]
[]
[]
[]
[]
[]
[]
[]
[]
[null,null,null,null,"-48-",null,null,null,null,null,null,null,null,null,null,null,"-13-"]
[null,null,null,"الصف :",null,null,null,null,"الشعبة",null,null,"   المادة الدراسية  "]
[]
["الرقم المتسلسل","الاســــــــــــــــــم",null,"أ","ب","جـ","د","هـ","ملحوظــــــات",null,null,"و","ز","حـ","ط","ي","النتيجة السنوية",null,"ملحوظــــــــات"]
[null,null,null,"التقـــــــــويم الاول","التقـــــــــويم الثاني","التقـــــــــويم الثالث","الاختبـــار النهــائي","المجمـــــــــــــــوع",null,null,null,"التقـــــــــويم الاول","التقـــــــــويم الثاني","التقـــــــــويم الثالث","الاختبـــار النهــائي","المجمـــــــــــــــوع",null,"علامة اختبار الإكمال"]
[null,null,null,0.2,0.2,0.2,0.4,1,null,null,null,0.2,0.2,0.2,0.4,1,1]
[null,"خالد 51"]
[null,"خالد 52"]
[null,"خالد 53"]
[null,"خالد 54"]
[null,"خالد 55"]
[null,"خالد 56"]
[null,"خالد 57"]
[null,"خالد 58"]
[null,"خالد 59"]
[]
[]
[]
[]
[]
[]
[]
[]
[]
[]
[]
[]
[]
[]
[]
[]
[]
[null,null,null,null,"-14-",null,null,null,null,null,null,null,null,null,null,null,"-45-"]
[null,null,null,"الصف:",null,null,null,null,"الشعبة :",null,null,"   المادة الدراسية  "]
[]
["الرقم المتسلسل","الاســــــــــــــــــم",null,"أ","ب","جـ","د","هـ","ملحوظــــــات",null,null,"و","ز","حـ","ط","ي","النتيجة السنوية",null,"ملحوظــــــــات"]
[null,null,null,"التقـــــــــويم الاول","التقـــــــــويم الثاني","التقـــــــــويم الثالث","الاختبـــار النهــائي","المجمـــــــــــــــوع",null,null,null,"التقـــــــــويم الاول","التقـــــــــويم الثاني","التقـــــــــويم الثالث","الاختبـــار النهــائي","المجمـــــــــــــــوع",null,"علامة اختبار الإكمال"]
[null,null,null,0.2,0.2,0.2,0.4,1,null,null,null,0.2,0.2,0.2,0.4,1,1]
[]
[]
[]
[]
[]
[]
[]
[]
[]
[]
[]
[]
[]
[]
[]
[]
[]
[]
[]
[]
[]
[]
[]
[]
[]
[]
[null,null,null,null,"-46-",null,null,null,null,null,null,null,null,null,null,null,"-15-"]
[null,null,null,"الصف:",null,null,null,null,"الشعبة",null,null,"   المادة الدراسية  "]
[]
["الرقم المتسلسل","الاســــــــــــــــــم",null,"أ","ب","جـ","د","هـ","ملحوظــــــات",null,null,"و","ز","حـ","ط","ي","النتيجة السنوية",null,"ملحوظــــــــات"]
[null,null,null,"التقـــــــــويم الاول","التقـــــــــويم الثاني","التقـــــــــويم الثالث","الاختبـــار النهــائي","المجمـــــــــــــــوع",null,null,null,"التقـــــــــويم الاول","التقـــــــــويم الثاني","التقـــــــــويم الثالث","الاختبـــار النهــائي","المجمـــــــــــــــوع",null,"علامة اختبار الإكمال"]
[null,null,null,0.2,0.2,0.2,0.4,1,null,null,null,0.2,0.2,0.2,0.4,1,1]
[null,"زياد 1"]
[null,"زياد 2"]
[null,"زياد 3"]
[null,"زياد 4"]
[null,"زياد 5"]
[null,"زياد 6"]
[null,"زياد 7"]
[null,"زياد 8"]
[null,"زياد 9"]
[null,"زياد 10"]
[null,"زياد 11"]
[null,"زياد 12"]
[null,"زياد 13"]
[null,"زياد 14"]
[null,"زياد 15"]
[null,"زياد 16"]
[null,"زياد 17"]
[null,"زياد 18"]
[null,"زياد 19"]
[null,"زياد 20"]
[null,"زياد 21"]
[null,"زياد 22"]
[null,"زياد 23"]
[null,"زياد 24"]
[null,"زياد 25"]
[]
[null,null,null,null,"-16-",null,null,null,null,null,null,null,null,null,null,null,"-45-"]
[null,null,null,"الصف :",null,null,null,null,"الشعبة ()",null,null,"   المادة الدراسية  "]
[]
["الرقم المتسلسل","الاســــــــــــــــــم",null,"أ","ب","جـ","د","هـ","ملحوظــــــات",null,null,"و","ز","حـ","ط","ي","النتيجة السنوية",null,"ملحوظــــــــات"]
[null,null,null,"التقـــــــــويم الاول","التقـــــــــويم الثاني","التقـــــــــويم الثالث","الاختبـــار النهــائي","المجمـــــــــــــــوع",null,null,null,"التقـــــــــويم الاول","التقـــــــــويم الثاني","التقـــــــــويم الثالث","الاختبـــار النهــائي","المجمـــــــــــــــوع",null,"علامة اختبار الإكمال"]
[null,null,null,0.2,0.2,0.2,0.4,1,null,null,null,0.2,0.2,0.2,0.4,1,1]
[]
[]
[]
[]
[]
[]
[]
[]
[]
[]
[]
[]
[]
[]
[]
[]
[]
[]
[]
[]
[]
[]
[]
[]
[]
[]
[null,null,null,null,"-44-",null,null,null,null,null,null,null,null,null,null,null,"-17-"]
[null,null,null,"الصف ",null,null,null,null,"الشعبة ",null,null,"   المادة الدراسية  "]
[]
["الرقم المتسلسل","الاســــــــــــــــــم",null,"أ","ب","جـ","د","هـ","ملحوظــــــات",null,null,"و","ز","حـ","ط","ي","النتيجة السنوية",null,"ملحوظــــــــات"]
[null,null,null,"التقـــــــــويم الاول","التقـــــــــويم الثاني","التقـــــــــويم الثالث","الاختبـــار النهــائي","المجمـــــــــــــــوع",null,null,null,"التقـــــــــويم الاول","التقـــــــــويم الثاني","التقـــــــــويم الثالث","الاختبـــار النهــائي","المجمـــــــــــــــوع",null,"علامة اختبار الإكمال"]
[null,null,null,0.2,0.2,0.2,0.4,1,null,null,null,0.2,0.2,0.2,0.4,1,1]
[null,"زياد 26"]
[null,"زياد 27"]
[null,"زياد 28"]
[null,"زياد 29"]
[null,"زياد 30"]
[null,"زياد 31"]
[null,"زياد 32"]
[null,"زياد 33"]
[null,"زياد 34"]
[null,"زياد 35"]
[null,"زياد 36"]
[null,"زياد 37"]
[null,"زياد 38"]
[null,"زياد 39"]
[null,"زياد 40"]
[null,"زياد 41"]
[null,"زياد 42"]
[null,"زياد 43"]
[null,"زياد 44"]
[null,"زياد 45"]
[null,"زياد 46"]
[null,"زياد 47"]
[null,"زياد 48"]
[null,"زياد 49"]
[null,"زياد 50"]
[]
[null,null,null,null,"-18-",null,null,null,null,null,null,null,null,null,null,null,"-43-"]
[null,null,null,"الصف ",null,null,null,null,"الشعبة",null,null,"   المادة الدراسية  "]
[]
["الرقم المتسلسل","الاســــــــــــــــــم",null,"أ","ب","جـ","د","هـ","ملحوظــــــات",null,null,"و","ز","حـ","ط","ي","النتيجة السنوية",null,"ملحوظــــــــات"]
[null,null,null,"التقـــــــــويم الاول","التقـــــــــويم الثاني","التقـــــــــويم الثالث","الاختبـــار النهــائي","المجمـــــــــــــــوع",null,null,null,"التقـــــــــويم الاول","التقـــــــــويم الثاني","التقـــــــــويم الثالث","الاختبـــار النهــائي","المجمـــــــــــــــوع",null,"علامة اختبار الإكمال"]
[null,null,null,0.2,0.2,0.2,0.4,1,null,null,null,0.2,0.2,0.2,0.4,1,1]
[]
[]
[]
[]
[]
[]
[]
[]
[]
[]
[]
[]
[]
[]
[]
[]
[]
[]
[]
[]
[]
[]
[]
[]
[]
[]
[null,null,null,null,"-42-",null,null,null,null,null,null,null,null,null,null,null,"-19-"]
[null,null,null,"الصف ",null,null,null,null,"الشعبة",null,null,"   المادة الدراسية  "]
[]
["الرقم المتسلسل","الاســــــــــــــــــم",null,"أ","ب","جـ","د","هـ","ملحوظــــــات",null,null,"و","ز","حـ","ط","ي","النتيجة السنوية",null,"ملحوظــــــــات"]
[null,null,null,"التقـــــــــويم الاول","التقـــــــــويم الثاني","التقـــــــــويم الثالث","الاختبـــار النهــائي","المجمـــــــــــــــوع",null,null,null,"التقـــــــــويم الاول","التقـــــــــويم الثاني","التقـــــــــويم الثالث","الاختبـــار النهــائي","المجمـــــــــــــــوع",null,"علامة اختبار الإكمال"]
[null,null,null,0.2,0.2,0.2,0.4,1,null,null,null,0.2,0.2,0.2,0.4,1,1]
[null,"زياد 51"]
[null,"زياد 52"]
[null,"زياد 53"]
[null,"زياد 54"]
[null,"زياد 55"]
[null,"زياد 56"]
[null,"زياد 57"]
[null,"زياد 58"]
[null,"زياد 59"]
[]
[]
[]
[]
[]
[]
[]
[]
[]
[]
[]
[]
[]
[]
[]
[]
[]
[null,null,null,null,"-20-",null,null,null,null,null,null,null,null,null,null,null,"-41-"]
[null,null,null,"الصف ",null,null,null,null,"الشعبة :",null,null,"   المادة الدراسية  "]
[]
["الرقم المتسلسل","الاســــــــــــــــــم",null,"أ","ب","جـ","د","هـ","ملحوظــــــات",null,null,"و","ز","حـ","ط","ي","النتيجة السنوية",null,"ملحوظــــــــات"]
[null,null,null,"التقـــــــــويم الاول","التقـــــــــويم الثاني","التقـــــــــويم الثالث","الاختبـــار النهــائي","المجمـــــــــــــــوع",null,null,null,"التقـــــــــويم الاول","التقـــــــــويم الثاني","التقـــــــــويم الثالث","الاختبـــار النهــائي","المجمـــــــــــــــوع",null,"علامة اختبار الإكمال"]
[null,null,null,0.2,0.2,0.2,0.4,1,null,null,null,0.2,0.2,0.2,0.4,1,1]
[]
[]
[]
[]
[]
[]
[]
[]
[]
[]
[]
[]
[]
[]
[]
[]
[]
[]
[]
[]
[]
[]
[]
[]
[]
[]
[null,null,null,null,"-40-",null,null,null,null,null,null,null,null,null,null,null,"-21-"]
[null,null,null,"الصف ",null,null,null,null,"الشعبة (ب)",null,null,"   المادة الدراسية  "]
[]
["الرقم المتسلسل",null,null,"أ","ب","جـ","د","هـ","ملحوظــــــات",null,null,"و","ز","حـ","ط","ي","النتيجة السنوية",null,"ملحوظــــــــات"]
[null,null,null,"التقـــــــــويم الاول","التقـــــــــويم الثاني","التقـــــــــويم الثالث","الاختبـــار النهــائي","المجمـــــــــــــــوع",null,null,null,"التقـــــــــويم الاول","التقـــــــــويم الثاني","التقـــــــــويم الثالث","الاختبـــار النهــائي","المجمـــــــــــــــوع",null,"علامة اختبار الإكمال"]
[null,null,null,0.2,0.2,0.2,0.4,1,null,null,null,0.2,0.2,0.2,0.4,1,1]
[null,"حسن 1"]
[null,"حسن 2"]
[null,"حسن 3"]
[null,"حسن 4"]
[null,"حسن 5"]
[null,"حسن 6"]
[null,"حسن 7"]
[null,"حسن 8"]
[null,"حسن 9"]
[null,"حسن 10"]
[null,"حسن 11"]
[null,"حسن 12"]
[null,"حسن 13"]
[null,"حسن 14"]
[null,"حسن 15"]
[null,"حسن 16"]
[null,"حسن 17"]
[null,"حسن 18"]
[null,"حسن 19"]
[null,"حسن 20"]
[null,"حسن 21"]
[null,"حسن 22"]
[null,"حسن 23"]
[null,"حسن 24"]
[null,"حسن 25"]
[]
[null,null,null,null,"-22-",null,null,null,null,null,null,null,null,null,null,null,"-39-"]
[null,null,null,"الصف ",null,null,null,null,"الشعبة ",null,null,"   المادة الدراسية  "]
[]
["الرقم المتسلسل","الاســــــــــــــــــم",null,"أ","ب","جـ","د","هـ","ملحوظــــــات",null,null,"و","ز","حـ","ط","ي","النتيجة السنوية",null,"ملحوظــــــــات"]
[null,null,null,"التقـــــــــويم الاول","التقـــــــــويم الثاني","التقـــــــــويم الثالث","الاختبـــار النهــائي","المجمـــــــــــــــوع",null,null,null,"التقـــــــــويم الاول","التقـــــــــويم الثاني","التقـــــــــويم الثالث","الاختبـــار النهــائي","المجمـــــــــــــــوع",null,"علامة اختبار الإكمال"]
[null,null,null,0.2,0.2,0.2,0.4,1,null,null,null,0.2,0.2,0.2,0.4,1,1]
[null,"صابر 51"]
[null,"صابر 52"]
[null,"صابر 53"]
[null,"صابر 54"]
[null,"صابر 55"]
[]
[]
[]
[]
[]
[]
[]
[]
[]
[]
[]
[]
[]
[]
[]
[]
[]
[]
[]
[]
[]
[null,null,null,null,"-38-",null,null,null,null,null,null,null,null,null,null,null,"-23-"]
[null,null,null,"الصف ",null,null,null,null,"الشعبة ",null,null,"   المادة الدراسية  "]
[]
["الرقم المتسلسل","الاســــــــــــــــــم",null,"أ","ب","جـ","د","هـ","ملحوظــــــات",null,null,"و","ز","حـ","ط","ي","النتيجة السنوية",null,"ملحوظــــــــات"]
[null,null,null,"التقـــــــــويم الاول","التقـــــــــويم الثاني","التقـــــــــويم الثالث","الاختبـــار النهــائي","المجمـــــــــــــــوع",null,null,null,"التقـــــــــويم الاول","التقـــــــــويم الثاني","التقـــــــــويم الثالث","الاختبـــار النهــائي","المجمـــــــــــــــوع",null,"علامة اختبار الإكمال"]
[null,null,null,0.2,0.2,0.2,0.4,1,null,null,null,0.2,0.2,0.2,0.4,1,1]
[null,"حسن 26"]
[null,"حسن 27"]
[null,"حسن 28"]
[null,"حسن 29"]
[null,"حسن 30"]
[null,"حسن 31"]
[null,"حسن 32"]
[null,"حسن 33"]
[null,"حسن 34"]
[null,"حسن 35"]
[null,"حسن 36"]
[null,"حسن 37"]
[null,"حسن 38"]
[null,"حسن 39"]
[null,"حسن 40"]
[null,"حسن 41"]
[null,"حسن 42"]
[null,"حسن 43"]
[null,"حسن 44"]
[null,"حسن 45"]
[null,"حسن 46"]
[null,"حسن 47"]
[null,"حسن 48"]
[null,"حسن 49"]
[null,"حسن 50"]
[]
[null,null,null,null,"-24-",null,null,null,null,null,null,null,null,null,null,null,"-37-"]
[null,null,null,"الصف ",null,null,null,null,"الشعبة ",null,null,"   المادة الدراسية  "]
[]
["الرقم المتسلسل","الاســــــــــــــــــم",null,"أ","ب","جـ","د","هـ","ملحوظــــــات",null,null,"و","ز","حـ","ط","ي","النتيجة السنوية",null,"ملحوظــــــــات"]
[null,null,null,"التقـــــــــويم الاول","التقـــــــــويم الثاني","التقـــــــــويم الثالث","الاختبـــار النهــائي","المجمـــــــــــــــوع",null,null,null,"التقـــــــــويم الاول","التقـــــــــويم الثاني","التقـــــــــويم الثالث","الاختبـــار النهــائي","المجمـــــــــــــــوع",null,"علامة اختبار الإكمال"]
[null,null,null,0.2,0.2,0.2,0.4,1,null,null,null,0.2,0.2,0.2,0.4,1,1]
[null,"صابر 26"]
[null,"صابر 27"]
[null,"صابر 28"]
[null,"صابر 29"]
[null,"صابر 30"]
[null,"صابر 31"]
[null,"صابر 32"]
[null,"صابر 33"]
[null,"صابر 34"]
[null,"صابر 35"]
[null,"صابر 36"]
[null,"صابر 37"]
[null,"صابر 38"]
[null,"صابر 39"]
[null,"صابر 40"]
[null,"صابر 41"]
[null,"صابر 42"]
[null,"صابر 43"]
[null,"صابر 44"]
[null,"صابر 45"]
[null,"صابر 46"]
[null,"صابر 47"]
[null,"صابر 48"]
[null,"صابر 49"]
[null,"صابر 50"]
[]
[null,null,null,null,"-36-",null,null,null,null,null,null,null,null,null,null,null,"-25-"]
[null,null,null,"الصف ",null,null,null,null,"الشعبة ",null,null,"   المادة الدراسية  "]
[]
["الرقم المتسلسل","الاســــــــــــــــــم",null,"أ","ب","جـ","د","هـ","ملحوظــــــات",null,null,"و","ز","حـ","ط","ي","النتيجة السنوية",null,"ملحوظــــــــات"]
[null,null,null,"التقـــــــــويم الاول","التقـــــــــويم الثاني","التقـــــــــويم الثالث","الاختبـــار النهــائي","المجمـــــــــــــــوع",null,null,null,"التقـــــــــويم الاول","التقـــــــــويم الثاني","التقـــــــــويم الثالث","الاختبـــار النهــائي","المجمـــــــــــــــوع",null,"علامة اختبار الإكمال"]
[null,null,null,0.2,0.2,0.2,0.4,1,null,null,null,0.2,0.2,0.2,0.4,1,1]
[null,"حسن 51"]
[null,"حسن 52"]
[null,"حسن 53"]
[null,"حسن 54"]
[null,"حسن 55"]
[]
[]
[]
[]
[]
[]
[]
[]
[]
[]
[]
[]
[]
[]
[]
[]
[]
[]
[]
[]
[]
[null,null,null,null,"-26-",null,null,null,null,null,null,null,null,null,null,null,"-35-"]
[null,null,null,"الصف ",null,null,null,null,"الشعبة ",null,null,"   المادة الدراسية  "]
[]
["الرقم المتسلسل","الاســــــــــــــــــم",null,"أ","ب","جـ","د","هـ","ملحوظــــــات",null,null,"و","ز","حـ","ط","ي","النتيجة السنوية",null,"ملحوظــــــــات"]
[null,null,null,"التقـــــــــويم الاول","التقـــــــــويم الثاني","التقـــــــــويم الثالث","الاختبـــار النهــائي","المجمـــــــــــــــوع",null,null,null,"التقـــــــــويم الاول","التقـــــــــويم الثاني","التقـــــــــويم الثالث","الاختبـــار النهــائي","المجمـــــــــــــــوع",null,"علامة اختبار الإكمال"]
[null,null,null,0.2,0.2,0.2,0.4,1,null,null,null,0.2,0.2,0.2,0.4,1,1]
[null,"صابر 1"]
[null,"صابر 2"]
[null,"صابر 3"]
[null,"صابر 4"]
[null,"صابر 5"]
[null,"صابر 6"]
[null,"صابر 7"]
[null,"صابر 8"]
[null,"صابر 9"]
[null,"صابر 10"]
[null,"صابر 11"]
[null,"صابر 12"]
[null,"صابر 13"]
[null,"صابر 14"]
[null,"صابر 15"]
[null,"صابر 16"]
[null,"صابر 17"]
[null,"صابر 18"]
[null,"صابر 19"]
[null,"صابر 20"]
[null,"صابر 21"]
[null,"صابر 22"]
[null,"صابر 23"]
[null,"صابر 24"]
[null,"صابر 25"]
[]
[null,null,null,null,"-34-",null,null,null,null,null,null,null,null,null,null,null,"-27-"]
[null,null,null,"الصف ",null,null,null,null,"الشعبة ",null,null,"   المادة الدراسية  "]
[]
["الرقم المتسلسل","الاســــــــــــــــــم",null,"أ","ب","جـ","د","هـ","ملحوظــــــات",null,null,"و","ز","حـ","ط","ي","النتيجة السنوية",null,"ملحوظــــــــات"]
[null,null,null,"التقـــــــــويم الاول","التقـــــــــويم الثاني","التقـــــــــويم الثالث","الاختبـــار النهــائي","المجمـــــــــــــــوع",null,null,null,"التقـــــــــويم الاول","التقـــــــــويم الثاني","التقـــــــــويم الثالث","الاختبـــار النهــائي","المجمـــــــــــــــوع",null,"علامة اختبار الإكمال"]
[null,null,null,0.2,0.2,0.2,0.4,1,null,null,null,0.2,0.2,0.2,0.4,1,1]
[null,"كرم 1"]
[null,"كرم 2"]
[null,"كرم 3"]
[null,"كرم 4"]
[null,"كرم 5"]
[null,"كرم 6"]
[null,"كرم 7"]
[null,"كرم 8"]
[null,"كرم 9"]
[null,"كرم 10"]
[null,"كرم 11"]
[null,"كرم 12"]
[null,"كرم 13"]
[null,"كرم 14"]
[null,"كرم 15"]
[null,"كرم 16"]
[null,"كرم 17"]
[null,"كرم 18"]
[null,"كرم 19"]
[null,"كرم 20"]
[null,"كرم 21"]
[null,"كرم 22"]
[null,"كرم 23"]
[null,"كرم 24"]
[null,"كرم 25"]
[]
[null,null,null,null,"-28-",null,null,null,null,null,null,null,null,null,null,null,"-33-"]
[null,null,null,"الصف ",null,null,null,null,"الشعبة ",null,null,"   المادة الدراسية  "]
[]
["الرقم المتسلسل","الاســــــــــــــــــم",null,"أ","ب","جـ","د","هـ","ملحوظــــــات",null,null,"و","ز","حـ","ط","ي","النتيجة السنوية",null,"ملحوظــــــــات"]
[null,null,null,"التقـــــــــويم الاول","التقـــــــــويم الثاني","التقـــــــــويم الثالث","الاختبـــار النهــائي","المجمـــــــــــــــوع",null,null,null,"التقـــــــــويم الاول","التقـــــــــويم الثاني","التقـــــــــويم الثالث","الاختبـــار النهــائي","المجمـــــــــــــــوع",null,"علامة اختبار الإكمال"]
[null,null,null,0.2,0.2,0.2,0.4,1,null,null,null,0.2,0.2,0.2,0.4,1,1]
[null,"كرم 51"]
[null,"كرم 52"]
[null,"كرم 53"]
[null,"كرم 54"]
[]
[]
[]
[]
[]
[]
[]
[]
[]
[]
[]
[]
[]
[]
[]
[]
[]
[]
[]
[]
[]
[]
[null,null,null,null,"-32-",null,null,null,null,null,null,null,null,null,null,null,"-29-"]
[null,null,null,"الصف ",null,null,null,null,"الشعبة ",null,null,"   المادة الدراسية  "]
[]
["الرقم المتسلسل","الاســــــــــــــــــم",null,"أ","ب","جـ","د","هـ","ملحوظــــــات",null,null,"و","ز","حـ","ط","ي","النتيجة السنوية",null,"ملحوظــــــــات"]
[null,null,null,"التقـــــــــويم الاول","التقـــــــــويم الثاني","التقـــــــــويم الثالث","الاختبـــار النهــائي","المجمـــــــــــــــوع",null,null,null,"التقـــــــــويم الاول","التقـــــــــويم الثاني","التقـــــــــويم الثالث","الاختبـــار النهــائي","المجمـــــــــــــــوع",null,"علامة اختبار الإكمال"]
[null,null,null,0.2,0.2,0.2,0.4,1,null,null,null,0.2,0.2,0.2,0.4,1,1]
[null,"كرم 26"]
[null,"كرم 27"]
[null,"كرم 28"]
[null,"كرم 29"]
[null,"كرم 30"]
[null,"كرم 31"]
[null,"كرم 32"]
[null,"كرم 33"]
[null,"كرم 34"]
[null,"كرم 35"]
[null,"كرم 36"]
[null,"كرم 37"]
[null,"كرم 38"]
[null,"كرم 39"]
[null,"كرم 40"]
[null,"كرم 41"]
[null,"كرم 42"]
[null,"كرم 43"]
[null,"كرم 44"]
[null,"كرم 45"]
[null,"كرم 46"]
[null,"كرم 47"]
[null,"كرم 48"]
[null,"كرم 49"]
[null,"كرم 50"]
[]
[null,null,null,null,"-30-",null,null,null,null,null,null,null,null,null,null,null,"-31-"]

{"sheet":"الغلاف الداخلي","index":3,"n_rows":63,"n_cols":19,"rows_kept":63,"cut":false,"hidden":true,"merged":[[31,11,31,12],[31,13,31,17],[33,18,34,19],[35,18,35,19],[36,18,36,19],[37,18,37,19],[38,18,38,19],[39,18,39,19],[40,18,40,19],[41,18,41,19],[42,18,42,19],[43,18,43,19],[55,18,55,19],[44,18,44,19],[45,18,45,19],[46,18,46,19],[47,18,47,19],[48,18,48,19],[49,18,49,19],[50,18,50,19],[51,18,51,19],[52,18,52,19],[53,18,53,19],[54,18,54,19],[56,18,56,19],[57,18,57,19],[58,18,58,19],[59,18,59,19],[60,18,60,19]]}
[]
[]
[]
[]
[]
[]
[]
[]
[]
[]
[]
[]
[]
[]
[]
[]
[]
[]
[]
[]
[]
[]
[]
[]
[]
[]
[]
[]
[]
[]
[]
[null,null,null,null,null,null,null,null,null,null,null,"   المادة الدراسية  "]
[]
[null,null,null,null,null,null,null,null,null,null,null,"و","ز","حـ","ط","ي","النتيجة السنوية",null,"ملحوظــــــــات"]
[null,null,null,null,null,null,null,null,null,null,null,"التقـــــــــويم الاول","التقـــــــــويم الثاني","التقـــــــــويم الثالث","التــــــــقويم الرابع","المــــجمـــــوع",null,"علامة اختبار الإكمال"]
[null,null,null,null,null,null,null,null,null,null,null,0.2,0.2,0.2,0.2,1,1]
[null,null,null,null,null,null,null,null,null,null,null,null,null,null,null,{"$f":"IF(COUNT(L37:O37)>3,SUM(L37:O37),\"\")","v":""},{"$f":"IF(COUNT(#REF!,P37)>=2,ROUND((#REF!+P37)/2,0),\"\")","v":""}]
[null,null,null,null,null,null,null,null,null,null,null,null,null,null,null,{"$f":"IF(COUNT(L38:O38)>3,SUM(L38:O38),\"\")","v":""},{"$f":"IF(COUNT(#REF!,P38)>=2,ROUND((#REF!+P38)/2,0),\"\")","v":""}]
[null,null,null,null,null,null,null,null,null,null,null,null,null,null,null,"",{"$f":"IF(COUNT(#REF!,P39)>=2,ROUND((#REF!+P39)/2,0),\"\")","v":""}]
[null,null,null,null,null,null,null,null,null,null,null,null,null,null,null,"",{"$f":"IF(COUNT(#REF!,P40)>=2,ROUND((#REF!+P40)/2,0),\"\")","v":""}]
[null,null,null,null,null,null,null,null,null,null,null,null,null,null,null,"",{"$f":"IF(COUNT(#REF!,P41)>=2,ROUND((#REF!+P41)/2,0),\"\")","v":""}]
[null,null,null,null,null,null,null,null,null,null,null,null,null,null,null,"",{"$f":"IF(COUNT(#REF!,P42)>=2,ROUND((#REF!+P42)/2,0),\"\")","v":""}]
[null,null,null,null,null,null,null,null,null,null,null,null,null,null,null,"",{"$f":"IF(COUNT(#REF!,P43)>=2,ROUND((#REF!+P43)/2,0),\"\")","v":""}]
[null,null,null,null,null,null,null,null,null,null,null,null,null,null,null,"",{"$f":"IF(COUNT(#REF!,P44)>=2,ROUND((#REF!+P44)/2,0),\"\")","v":""}]
[null,null,null,null,null,null,null,null,null,null,null,null,null,null,null,"",{"$f":"IF(COUNT(#REF!,P45)>=2,ROUND((#REF!+P45)/2,0),\"\")","v":""}]
[null,null,null,null,null,null,null,null,null,null,null,null,null,null,null,"",{"$f":"IF(COUNT(#REF!,P46)>=2,ROUND((#REF!+P46)/2,0),\"\")","v":""}]
[null,null,null,null,null,null,null,null,null,null,null,null,null,null,null,"",{"$f":"IF(COUNT(#REF!,P47)>=2,ROUND((#REF!+P47)/2,0),\"\")","v":""}]
[null,null,null,null,null,null,null,null,null,null,null,null,null,null,null,"",{"$f":"IF(COUNT(#REF!,P48)>=2,ROUND((#REF!+P48)/2,0),\"\")","v":""}]
[null,null,null,null,null,null,null,null,null,null,null,null,null,null,null,"",{"$f":"IF(COUNT(#REF!,P49)>=2,ROUND((#REF!+P49)/2,0),\"\")","v":""}]
[null,null,null,null,null,null,null,null,null,null,null,null,null,null,null,"",{"$f":"IF(COUNT(#REF!,P50)>=2,ROUND((#REF!+P50)/2,0),\"\")","v":""}]
[null,null,null,null,null,null,null,null,null,null,null,null,null,null,null,"",{"$f":"IF(COUNT(#REF!,P51)>=2,ROUND((#REF!+P51)/2,0),\"\")","v":""}]
[null,null,null,null,null,null,null,null,null,null,null,null,null,null,null,"",{"$f":"IF(COUNT(#REF!,P52)>=2,ROUND((#REF!+P52)/2,0),\"\")","v":""}]
[null,null,null,null,null,null,null,null,null,null,null,null,null,null,null,"",{"$f":"IF(COUNT(#REF!,P53)>=2,ROUND((#REF!+P53)/2,0),\"\")","v":""}]
[null,null,null,null,null,null,null,null,null,null,null,null,null,null,null,"",{"$f":"IF(COUNT(#REF!,P54)>=2,ROUND((#REF!+P54)/2,0),\"\")","v":""}]
[null,null,null,null,null,null,null,null,null,null,null,null,null,null,null,"",{"$f":"IF(COUNT(#REF!,P55)>=2,ROUND((#REF!+P55)/2,0),\"\")","v":""}]
[null,null,null,null,null,null,null,null,null,null,null,null,null,null,null,"",{"$f":"IF(COUNT(#REF!,P56)>=2,ROUND((#REF!+P56)/2,0),\"\")","v":""}]
[null,null,null,null,null,null,null,null,null,null,null,null,null,null,null,"",{"$f":"IF(COUNT(#REF!,P57)>=2,ROUND((#REF!+P57)/2,0),\"\")","v":""}]
[null,null,null,null,null,null,null,null,null,null,null,null,null,null,null,"",{"$f":"IF(COUNT(#REF!,P58)>=2,ROUND((#REF!+P58)/2,0),\"\")","v":""}]
[null,null,null,null,null,null,null,null,null,null,null,null,null,null,null,"",{"$f":"IF(COUNT(#REF!,P59)>=2,ROUND((#REF!+P59)/2,0),\"\")","v":""}]
[null,null,null,null,null,null,null,null,null,null,null,null,null,null,null,"",{"$f":"IF(COUNT(#REF!,P60)>=2,ROUND((#REF!+P60)/2,0),\"\")","v":""}]
[null,null,null,null,null,null,null,null,null,null,null,null,null,null,null,"",{"$f":"IF(COUNT(#REF!,P61)>=2,ROUND((#REF!+P61)/2,0),\"\")","v":""}]
[]
[null,null,null,null,null,null,null,null,null,null,null,null,null,null,null,null,"-59-"]

{"sheet":"الغلاف الازرق","index":4,"n_rows":0,"n_cols":0,"rows_kept":0,"cut":false,"hidden":true,"merged":[]}